{"text_format":"1","workbook":"xlsx","n_sheets":21,"sheets":["Risk","Crop","Log_TPL","Pests","Lists","Costs","Logos","Pest_Report","SCR","SM","THRP","LS","TSWV","CBR","SCL","SSR","NRN","PRN","SN","WDS","CNW"],"not_rendered":{"charts":4,"images":4,"macros":1,"external_links":0,"defined_names":183,"comments":0,"pivot_tables":0},"unopened":[],"bounds":{"document_bytes":16777216,"sheet_cells":100000,"rows_first":2000,"rows_last":500,"rows_between":2000,"halvings":0,"cell_chars":16384,"cell_head_chars":4096},"cells_cut":0,"cells_raw":0,"read":"whole","date_system":"1900"}

{"sheet":"Risk","index":0,"n_rows":48,"n_cols":21,"rows_kept":48,"cut":false,"hidden":false,"merged":[[6,17,6,20],[9,17,9,20],[1,5,1,6],[2,6,2,7],[2,9,2,12],[2,13,2,16],[2,17,2,20],[6,6,6,7],[6,9,6,12],[6,13,6,16],[9,6,9,7],[9,9,9,12],[9,13,9,16],[41,4,43,4],[44,4,46,4],[13,6,13,7],[13,9,13,12],[13,13,13,16],[22,6,24,20],[13,17,13,20],[15,6,15,7],[15,9,15,12],[15,13,15,16],[15,17,15,20],[19,6,19,7],[19,9,19,12],[19,13,19,16],[19,17,19,20]]}
[]
[]
[null,null,null,"Crop Practices",null,null,"Arthropod",null,"Index","Low",null,null,null,"Med",null,null,null,"High"]
[null,null,null,"Cultivar","Bailey II",null,null,"Southern Corn Rootworm",{"$f":"SCR_RiskIndex","v":55},{"$f":"SCR_RiskIndex","v":55},{"$f":"SCR_RiskIndex","v":55},{"$f":"SCR_RiskIndex","v":55},{"$f":"SCR_RiskIndex","v":55},{"$f":"SCR_RiskIndex","v":55},{"$f":"SCR_RiskIndex","v":55},{"$f":"SCR_RiskIndex","v":55},{"$f":"SCR_RiskIndex","v":55},{"$f":"SCR_RiskIndex","v":55},{"$f":"SCR_RiskIndex","v":55},{"$f":"SCR_RiskIndex","v":55},{"$f":"SCR_RiskIndex","v":55}]
[null,null,null,"Plant Density","5 or more plants/row ft.",null,null,"Spider Mites",{"$f":"SM_RiskIndex","v":110},{"$f":"SM_RiskIndex","v":110},{"$f":"SM_RiskIndex","v":110},{"$f":"SM_RiskIndex","v":110},{"$f":"SM_RiskIndex","v":110},{"$f":"SM_RiskIndex","v":110},{"$f":"SM_RiskIndex","v":110},{"$f":"SM_RiskIndex","v":110},{"$f":"SM_RiskIndex","v":110},{"$f":"SM_RiskIndex","v":110},{"$f":"SM_RiskIndex","v":110},{"$f":"SM_RiskIndex","v":110},{"$f":"SM_RiskIndex","v":110}]
[null,null,null,"Planting Date","2021-05-01",null,null,"Thrips",{"$f":"THRP_RiskIndex","v":25},{"$f":"THRP_RiskIndex","v":25},{"$f":"THRP_RiskIndex","v":25},{"$f":"THRP_RiskIndex","v":25},{"$f":"THRP_RiskIndex","v":25},{"$f":"THRP_RiskIndex","v":25},{"$f":"THRP_RiskIndex","v":25},{"$f":"THRP_RiskIndex","v":25},{"$f":"THRP_RiskIndex","v":25},{"$f":"THRP_RiskIndex","v":25},{"$f":"THRP_RiskIndex","v":25},{"$f":"THRP_RiskIndex","v":25},{"$f":"THRP_RiskIndex","v":25}]
[null,null,null,"Row Pattern","Single (32 to 38 inches)",null,"Disease (Foliar)",null,"Index","Low",null,null,null,"Med",null,null,null,"High"]
[null,null,null,"Field",null,null,null,"Early/Late Leaf Spot",{"$f":"LS_RiskIndex","v":75},{"$f":"LS_RiskIndex","v":75},{"$f":"LS_RiskIndex","v":75},{"$f":"LS_RiskIndex","v":75},{"$f":"LS_RiskIndex","v":75},{"$f":"LS_RiskIndex","v":75},{"$f":"LS_RiskIndex","v":75},{"$f":"LS_RiskIndex","v":75},{"$f":"LS_RiskIndex","v":75},{"$f":"LS_RiskIndex","v":75},{"$f":"LS_RiskIndex","v":75},{"$f":"LS_RiskIndex","v":75},{"$f":"LS_RiskIndex","v":75}]
[null,null,null,"Borders Early Season","Clean",null,null,"Tomato Spotted Wilt Virus",{"$f":"TSWV_RiskIndex","v":60},{"$f":"TSWV_RiskIndex","v":60},{"$f":"TSWV_RiskIndex","v":60},{"$f":"TSWV_RiskIndex","v":60},{"$f":"TSWV_RiskIndex","v":60},{"$f":"TSWV_RiskIndex","v":60},{"$f":"TSWV_RiskIndex","v":60},{"$f":"TSWV_RiskIndex","v":60},{"$f":"TSWV_RiskIndex","v":60},{"$f":"TSWV_RiskIndex","v":60},{"$f":"TSWV_RiskIndex","v":60},{"$f":"TSWV_RiskIndex","v":60},{"$f":"TSWV_RiskIndex","v":60}]
[null,null,null,"Borders Late Season","Not Mowed",null,"Disease (Soil Borne)",null,"Index","Low",null,null,null,"Med",null,null,null,"High"]
[null,null,null,"Irrigation","Irrigated",null,null,"Cylindrocladium Black Rot",{"$f":"CBR_RiskIndex","v":70},{"$f":"CBR_RiskIndex","v":70},{"$f":"CBR_RiskIndex","v":70},{"$f":"CBR_RiskIndex","v":70},{"$f":"CBR_RiskIndex","v":70},{"$f":"CBR_RiskIndex","v":70},{"$f":"CBR_RiskIndex","v":70},{"$f":"CBR_RiskIndex","v":70},{"$f":"CBR_RiskIndex","v":70},{"$f":"CBR_RiskIndex","v":70},{"$f":"CBR_RiskIndex","v":70},{"$f":"CBR_RiskIndex","v":70},{"$f":"CBR_RiskIndex","v":70}]
[null,null,null,"Previous Weed Control","Good",null,null,"Sclerotinia",{"$f":"SCL_RiskIndex","v":145},{"$f":"SCL_RiskIndex","v":145},{"$f":"SCL_RiskIndex","v":145},{"$f":"SCL_RiskIndex","v":145},{"$f":"SCL_RiskIndex","v":145},{"$f":"SCL_RiskIndex","v":145},{"$f":"SCL_RiskIndex","v":145},{"$f":"SCL_RiskIndex","v":145},{"$f":"SCL_RiskIndex","v":145},{"$f":"SCL_RiskIndex","v":145},{"$f":"SCL_RiskIndex","v":145},{"$f":"SCL_RiskIndex","v":145},{"$f":"SCL_RiskIndex","v":145}]
[null,null,null,"Seedbed","Conventional",null,null,"Southern Stem Rot",{"$f":"SSR_RiskIndex","v":60},{"$f":"SSR_RiskIndex","v":60},{"$f":"SSR_RiskIndex","v":60},{"$f":"SSR_RiskIndex","v":60},{"$f":"SSR_RiskIndex","v":60},{"$f":"SSR_RiskIndex","v":60},{"$f":"SSR_RiskIndex","v":60},{"$f":"SSR_RiskIndex","v":60},{"$f":"SSR_RiskIndex","v":60},{"$f":"SSR_RiskIndex","v":60},{"$f":"SSR_RiskIndex","v":60},{"$f":"SSR_RiskIndex","v":60},{"$f":"SSR_RiskIndex","v":60}]
[null,null,null,"Weeds","C. Ragweed and Palmer A.",null,"Foliar-feeding Insects",null,"Index","Low",null,null,null,"Med",null,null,null,"High"]
[null,null,null,"Field Crop History",null,null,null,"Caterpillars and Worms",{"$f":"CNW_RiskIndex","v":35},{"$f":"CNW_RiskIndex","v":35},{"$f":"CNW_RiskIndex","v":35},{"$f":"CNW_RiskIndex","v":35},{"$f":"CNW_RiskIndex","v":35},{"$f":"CNW_RiskIndex","v":35},{"$f":"CNW_RiskIndex","v":35},{"$f":"CNW_RiskIndex","v":35},{"$f":"CNW_RiskIndex","v":35},{"$f":"CNW_RiskIndex","v":35},{"$f":"CNW_RiskIndex","v":35},{"$f":"CNW_RiskIndex","v":35},{"$f":"CNW_RiskIndex","v":35}]
[null,null,null,"1 Year Ago","Cotton",null,"Nematode",null,"Index","Low",null,null,null,"Med",null,null,null,"High"]
[null,null,null,"2 Years Ago","Field Corn",null,null,"Northern Rootknot",{"$f":"NRN_RiskIndex","v":35},{"$f":"NRN_RiskIndex","v":35},{"$f":"NRN_RiskIndex","v":35},{"$f":"NRN_RiskIndex","v":35},{"$f":"NRN_RiskIndex","v":35},{"$f":"NRN_RiskIndex","v":35},{"$f":"NRN_RiskIndex","v":35},{"$f":"NRN_RiskIndex","v":35},{"$f":"NRN_RiskIndex","v":35},{"$f":"NRN_RiskIndex","v":35},{"$f":"NRN_RiskIndex","v":35},{"$f":"NRN_RiskIndex","v":35},{"$f":"NRN_RiskIndex","v":35}]
[null,null,null,"3 Years Ago","Cotton",null,null,"Peanut Rootknot",{"$f":"PRN_RiskIndex","v":42},{"$f":"PRN_RiskIndex","v":42},{"$f":"PRN_RiskIndex","v":42},{"$f":"PRN_RiskIndex","v":42},{"$f":"PRN_RiskIndex","v":42},{"$f":"PRN_RiskIndex","v":42},{"$f":"PRN_RiskIndex","v":42},{"$f":"PRN_RiskIndex","v":42},{"$f":"PRN_RiskIndex","v":42},{"$f":"PRN_RiskIndex","v":42},{"$f":"PRN_RiskIndex","v":42},{"$f":"PRN_RiskIndex","v":42},{"$f":"PRN_RiskIndex","v":42}]
[null,null,null,"4 Years ago","Peanut",null,null,"Sting",{"$f":"SN_RiskIndex","v":60},{"$f":"SN_RiskIndex","v":60},{"$f":"SN_RiskIndex","v":60},{"$f":"SN_RiskIndex","v":60},{"$f":"SN_RiskIndex","v":60},{"$f":"SN_RiskIndex","v":60},{"$f":"SN_RiskIndex","v":60},{"$f":"SN_RiskIndex","v":60},{"$f":"SN_RiskIndex","v":60},{"$f":"SN_RiskIndex","v":60},{"$f":"SN_RiskIndex","v":60},{"$f":"SN_RiskIndex","v":60},{"$f":"SN_RiskIndex","v":60}]
[null,null,null,"Field Soil",null,null,"Plant",null,"Index","Low",null,null,null,"Med",null,null,null,"High"]
[null,null,null,"Drainage Class","Well",null,null,"Weeds",{"$f":"WDS_RiskIndex","v":200},{"$f":"WDS_RiskIndex","v":200},{"$f":"WDS_RiskIndex","v":200},{"$f":"WDS_RiskIndex","v":200},{"$f":"WDS_RiskIndex","v":200},{"$f":"WDS_RiskIndex","v":200},{"$f":"WDS_RiskIndex","v":200},{"$f":"WDS_RiskIndex","v":200},{"$f":"WDS_RiskIndex","v":200},{"$f":"WDS_RiskIndex","v":200},{"$f":"WDS_RiskIndex","v":200},{"$f":"WDS_RiskIndex","v":200},{"$f":"WDS_RiskIndex","v":200}]
[null,null,null,"pH",6.2]
[null,null,null,"Texture","Loamy Sand",null,"Red Dots - Change practices to minimize risk.\r\nYellow Dots - Consider adjusting practices to reduce risk.\r\nGreen Dots - Acceptable risk for selected practices."]
[null,null,null,"Leaf Spot Management"]
[null,null,null,"Chlorothalonil Applications","3 or more"]
[null,null,null,"Fungicide Resistance","None Identified"]
[null,null,null,"Spray Schedule","Calendar"]
[null,null,null,"Nematode History"]
[null,null,null,"Northern Rootknot","Very Low (NCDA Index < 20)"]
[null,null,null,"Peanut Rootknot","Very Low (NCDA Index < 20)"]
[null,null,null,"Sting","Very Low (NCDA Index < 20)"]
[null,null,null,"Pest"]
[null,null,null,"Host Crops","Field Corn"]
[null,null,null,"Pest History"]
[null,null,null,"Cylindrocladium Black Rot","Low (incidence < 5%)"]
[null,null,null,"Leaf Spot","Present but not a problem with a good fungicide program"]
[null,null,null,"Sclerotinia","No history"]
[null,null,null,"Southern Corn Rootworm","No History"]
[null,null,null,"Southern Stem Rot","No history"]
[null,null,null,"Treatments"]
[null,null,null,"Fumigants","None"]
[null,null,null,"Post Insecticide","Lorsban (Pilot 15 G)"]
[]
[]
[null,null,null,"Pre Emergence","Thimet 20G"]
[]
[]
[null,null,null,"Weed Mgmt","None"]

{"sheet":"Crop","index":1,"n_rows":16,"n_cols":5,"rows_kept":16,"cut":false,"hidden":true,"merged":[[11,1,11,5],[12,1,12,5],[13,1,13,5],[14,1,14,5],[15,1,15,5],[6,1,6,5],[7,1,7,5],[8,1,8,5],[9,1,9,5],[10,1,10,5]]}
["Crop","Peanut"]
[]
["Planting Season","Date","Month","Day of Month","Day of Year"]
["Start","2021-04-23",{"$f":"MONTH(B4)","v":4},{"$f":"DAY(B4)","v":23},{"$f":"B4-DATE(YEAR(B4),1,1)+1","v":113}]
["End","2021-06-30",{"$f":"MONTH(B5)","v":6},{"$f":"DAY(B5)","v":30},{"$f":"B5-DATE(YEAR(B5),1,1)+1","v":181}]
[]
["Title","Peanut Risk Management Tool - North Carolina"]
["Subtitle"]
["Credit Lines","David Jordan, Greg Buol, and Gail Wilkerson"]
[null,"Crop and Soil Sciences"]
[null,"Barbara Shew, Rick Brandenburg and Adrienne Gorny"]
[null,"Entomology and Plant Pathology"]
[null,"Derek Washburn"]
[null,"Agricultural and Resource Economics"]
[]
[null,"North Carolina State University, Raleigh NC"]

{"sheet":"Log_TPL","index":2,"n_rows":252,"n_cols":25,"rows_kept":252,"cut":false,"hidden":true,"merged":[[98,5,98,9],[98,10,98,17],[140,4,141,12],[0,0,0,14],[25,5,25,14]]}
["Field and Production Information"]
[null,null,null,null,null,null,null,null,null,null,null,null,null,null,null,null,null,null,"Input Selection Lists"]
[null,null,null,"Crop",{"$f":"Crop","v":"Peanut"},null,null,null,null,null,null,null,null,null,null,null,null,null,"Tillage_Pracs","Land_Plaster_Meth","Land_Plaster_Type","Digging_Eq","Combine","Moisture_Status","Control_Rating"]
[null,null,null,"Field Area (A)"]
[null,null,null,null,null,null,null,null,null,null,null,null,null,null,null,null,null,null,"Bed","Banded","Bagged","2 Row Digger","2 Row Pull Type Combine","Very Dry","No Control (<5%)"]
[null,null,null,"Soil ","Mapped Series","% of Field",null,null,null,null,null,null,null,null,null,null,null,null,"Chisel","Broadcast","Bulk","4 Row Digger","4 Row Pull Type Combine","Dry","Poor (5% to 20%)"]
[null,null,null,null,null,null,null,null,null,null,null,null,null,null,null,null,null,null,"Cultivate","Other","Granular","6 Row Digger","6 Row Pull Type Combine","Adequate","Low (20% to 50%)"]
[null,null,null,null,null,null,null,null,null,null,null,null,null,null,null,null,null,null,"Disk",null,"Other","Other","6 Row Self-Propelled Combine","Wet","Moderate (50% to 80%)"]
[null,null,null,null,null,null,null,null,null,null,null,null,null,null,null,null,null,null,"Moldboard Plow",null,null,null,"8 Row Self-Propelled Combine","Very Wet","High (80% to 90%)"]
[null,null,null,null,null,null,null,null,null,null,null,null,null,null,null,null,null,null,"No Till",null,null,null,"Other",null,"Excellent (90% to 100%)"]
[null,null,null,null,null,null,null,null,null,null,null,null,null,null,null,null,null,null,"Other"]
[null,null,null,null,null,null,null,null,null,null,null,null,null,null,null,null,null,null,"Rip"]
[null,null,null,"Tillage Practice","Date","Equipment",null,null,null,null,null,null,null,null,null,null,null,null,"Rip and Bed"]
[null,null,null,null,null,null,null,null,null,null,null,null,null,null,null,null,null,null,"Strip Till"]
[]
[]
[]
[null,null,null,"Lime Applications","Date","Rate (lbs/acre)"]
[null,null,null,"Current Year"]
[null,null,null,"Last Year"]
[]
[null,null,null,"Seed Inoculation","Date","Inoculant"]
[]
[]
[null,null,null,"Fertilizer","Date","N","P2O5","K2O","B","Cu","Fe","Mn","Mo","S","Zn"]
[null,null,null,null,null,"lbs/acre"]
[]
[]
[]
[]
[]
[null,null,null,"Land Plaster","Date","Trade Name","Type","Method","Rate (lbs/acre)"]
[]
[]
[null,null,null,"Herbicides","Date","Weeds","Weed Size","Trade Name","Rate","Trade Name","Rate","Trade Name","Rate","Trade Name","Rate","Evaluation Date","Control Rating"]
[null,null,null,"Burndown"]
[null,null,null,"Preplant"]
[null,null,null,"Preemergence"]
[null,null,null,"At Cracking"]
[null,null,null,"First Postemergence"]
[null,null,null,"Second Postemergence"]
[null,null,null,"Third Postemergence"]
[]
[null,null,null,"Leaf Spot Program","Date","Severity","Trade Name","Rate","Trade Name","Rate","Trade Name","Rate","Evaluation Date","Control Rating"]
[]
[]
[]
[]
[]
[]
[]
[]
[]
[]
[]
[]
[]
[null,null,null,"Pest Treaments","Date","Severity","Trade Name","Rate","Trade Name","Rate","Evaluation Date","Control Rating"]
[null,null,null,"Sclerotina Blight"]
[]
[null,null,null,"CBR"]
[]
[null,null,null,"Southern Corn Rootworm"]
[]
[null,null,null,"Spider Mites"]
[]
[]
[null,null,null,"Insecticide Treaments","Date","Pest","Severity","Trade Name","Rate","Trade Name","Rate","Evaluation Date","Control Rating"]
[null,null,null,"In-furrow"]
[null,null,null,"Foliar"]
[]
[]
[]
[]
[]
[]
[null,null,null,"Development Dates","Date"]
[null,null,null,"Emergence"]
[null,null,null,"First Flower"]
[null,null,null,"First Peg"]
[null,null,null,"Last Flower"]
[]
[null,null,null,"Development Moisture Status"]
[null,null,null,"Planting to Emergence"]
[null,null,null,"Emergence to Flowering"]
[null,null,null,"Flowering to Pod Formation"]
[null,null,null,"Pod Formation to Harvest"]
[]
[null,null,null,"Weeds at Harvest"]
[]
[]
[]
[]
[]
[]
[]
[]
[null,null,null,"Pod Blasting Data","Date","White","Yellow","Orange","Brown","Black","White","Yellow","Orange","Brown","Black","Brown/Black"]
[null,null,null,null,null,"Pod Count",null,null,null,null,"Percentage(%)"]
[null,null,null,null,null,null,null,null,null,null,{"$f":"IF(SUM($F100:$J100)=0,NA(),F100/(SUM($F100:$J100)))","v":{"$error":"#N/A"}},{"$f":"IF(SUM($F100:$J100)=0,NA(),G100/(SUM($F100:$J100)))","v":{"$error":"#N/A"}},{"$error":"#N/A"},{"$error":"#N/A"},{"$error":"#N/A"},{"$f":"N100+O100","v":{"$error":"#N/A"}}]
[null,null,null,null,null,null,null,null,null,null,{"$error":"#N/A"},{"$error":"#N/A"},{"$error":"#N/A"},{"$error":"#N/A"},{"$error":"#N/A"},{"$f":"N101+O101","v":{"$error":"#N/A"}}]
[null,null,null,null,null,null,null,null,null,null,{"$error":"#N/A"},{"$error":"#N/A"},{"$error":"#N/A"},{"$error":"#N/A"},{"$error":"#N/A"},{"$error":"#N/A"}]
[null,null,null,null,null,null,null,null,null,null,{"$error":"#N/A"},{"$error":"#N/A"},{"$error":"#N/A"},{"$error":"#N/A"},{"$error":"#N/A"},{"$error":"#N/A"}]
[]
[null,null,null,"Digging","Date","Equipment"]
[]
[]
[null,null,null,"Harvest","Date","Equipment"]
[]
[]
[null,null,null,"Yield Goal (lbs/acre)"]
[null,null,null,"Yield (lbs/acre)"]
[null,null,null,"Selling Price ($/lb)"]
[]
[null,null,null,"Grading Results","Grams (gr)","Percentage (%)"]
[null,null,null,"Foreign Material Sample"]
[null,null,null,"Foreign Material",null,{"$f":"IFERROR(E117/E116,0)","v":0}]
[null,null,null,"LSK",null,{"$f":"IFERROR(E118/E116,0)","v":0}]
[null,null,null,"Moisture"]
[]
[null,null,null,"Cleaned Sample"]
[null,null,null,"Fancy",null,{"$f":"IFERROR(E122/E121,0)","v":0}]
[null,null,null,"Kernels Riding ELK Screen"]
[null,null,null,"Total ELK Damage"]
[null,null,null,"Net ELK",{"$f":"E123-E124","v":0},{"$f":"IFERROR(E125/E121,0)","v":0}]
[null,null,null,"Kernels Riding Prescribed Screen"]
[]
[null,null,null,"Total KRS"]
[null,null,null,"Damage KRS"]
[null,null,null,"SMKRS",{"$f":"E128-E129","v":0},{"$f":"IFERROR(E130/E121,0)","v":0}]
[null,null,null,"Sound Splits",null,{"$f":"IFERROR(E131/E121,0)","v":0}]
[null,null,null,"Total SMK",null,{"$f":"F130+F131","v":0}]
[null,null,null,"Other Kernels",null,{"$f":"IFERROR(E133/E121,0)","v":0}]
[null,null,null,"Damage Splits"]
[null,null,null,"Total Damage",null,{"$f":"IFERROR(E135/E121,0)","v":0}]
[null,null,null,"Total Kernels",null,{"$f":"F132+F133+F134+F135","v":0}]
[null,null,null,"Hulls",null,{"$f":"IFERROR(E137/E121,0)","v":0}]
[null,null,null,"Total Kernels & Halls",null,{"$f":"F136+F137","v":0}]
[null,null,null,"Freeze Damage",null,{"$f":"IFERROR(E139/E121,0)","v":0}]
[null,null,null,"Concealed RMD",null,{"$f":"IFERROR(E140/E121,0)","v":0}]
[null,null,null,"Remarks"]
[]
[]
[null,null,null,"Monthly Soil Moisture Conditions"]
[null,null,null,"May"]
[null,null,null,"June"]
[null,null,null,"July"]
[null,null,null,"August"]
[null,null,null,"September"]
[null,null,null,"October"]
[]
[null,null,null,"Rainfall/Irrigation","Date","Amount (in)","Month",null,"Month","Amount (in)"]
[null,null,null,null,null,null,{"$f":"IF(ISBLANK(E153),\"\",TEXT(E153,\"mmm\"))","v":""},null,"Jan",{"$f":"SUMIF(G$153:G$252,\"=\" & I153,F$153:F$252)","v":0}]
[null,null,null,null,null,null,{"$f":"IF(ISBLANK(E154),\"\",TEXT(E154,\"mmm\"))","v":""},null,"Feb",{"$f":"SUMIF(G$153:G$252,\"=\" & I154,F$153:F$252)","v":0}]
[null,null,null,null,null,null,"",null,"Mar",0]
[null,null,null,null,null,null,"",null,"Apr",0]
[null,null,null,null,null,null,"",null,"May",0]
[null,null,null,null,null,null,"",null,"Jun",0]
[null,null,null,null,null,null,"",null,"Jul",0]
[null,null,null,null,null,null,"",null,"Aug",0]
[null,null,null,null,null,null,"",null,"Sep",0]
[null,null,null,null,null,null,"",null,"Oct",0]
[null,null,null,null,null,null,"",null,"Nov",0]
[null,null,null,null,null,null,"",null,"Dec",0]
[null,null,null,null,null,null,""]
[null,null,null,null,null,null,""]
[null,null,null,null,null,null,""]
[null,null,null,null,null,null,""]
[null,null,null,null,null,null,""]
[null,null,null,null,null,null,""]
[null,null,null,null,null,null,""]
[null,null,null,null,null,null,""]
[null,null,null,null,null,null,""]
[null,null,null,null,null,null,""]
[null,null,null,null,null,null,""]
[null,null,null,null,null,null,""]
[null,null,null,null,null,null,""]
[null,null,null,null,null,null,""]
[null,null,null,null,null,null,""]
[null,null,null,null,null,null,""]
[null,null,null,null,null,null,""]
[null,null,null,null,null,null,""]
[null,null,null,null,null,null,""]
[null,null,null,null,null,null,""]
[null,null,null,null,null,null,""]
[null,null,null,null,null,null,""]
[null,null,null,null,null,null,""]
[null,null,null,null,null,null,""]
[null,null,null,null,null,null,""]
[null,null,null,null,null,null,""]
[null,null,null,null,null,null,""]
[null,null,null,null,null,null,""]
[null,null,null,null,null,null,""]
[null,null,null,null,null,null,""]
[null,null,null,null,null,null,""]
[null,null,null,null,null,null,""]
[null,null,null,null,null,null,""]
[null,null,null,null,null,null,""]
[null,null,null,null,null,null,""]
[null,null,null,null,null,null,""]
[null,null,null,null,null,null,""]
[null,null,null,null,null,null,""]
[null,null,null,null,null,null,""]
[null,null,null,null,null,null,""]
[null,null,null,null,null,null,""]
[null,null,null,null,null,null,""]
[null,null,null,null,null,null,""]
[null,null,null,null,null,null,""]
[null,null,null,null,null,null,""]
[null,null,null,null,null,null,""]
[null,null,null,null,null,null,""]
[null,null,null,null,null,null,""]
[null,null,null,null,null,null,""]
[null,null,null,null,null,null,""]
[null,null,null,null,null,null,""]
[null,null,null,null,null,null,""]
[null,null,null,null,null,null,""]
[null,null,null,null,null,null,{"$f":"IF(ISBLANK(E218),\"\",TEXT(E218,\"mmm\"))","v":""}]
[null,null,null,null,null,null,""]
[null,null,null,null,null,null,""]
[null,null,null,null,null,null,""]
[null,null,null,null,null,null,""]
[null,null,null,null,null,null,""]
[null,null,null,null,null,null,""]
[null,null,null,null,null,null,""]
[null,null,null,null,null,null,""]
[null,null,null,null,null,null,""]
[null,null,null,null,null,null,""]
[null,null,null,null,null,null,""]
[null,null,null,null,null,null,""]
[null,null,null,null,null,null,""]
[null,null,null,null,null,null,""]
[null,null,null,null,null,null,""]
[null,null,null,null,null,null,""]
[null,null,null,null,null,null,""]
[null,null,null,null,null,null,""]
[null,null,null,null,null,null,""]
[null,null,null,null,null,null,""]
[null,null,null,null,null,null,""]
[null,null,null,null,null,null,""]
[null,null,null,null,null,null,""]
[null,null,null,null,null,null,""]
[null,null,null,null,null,null,""]
[null,null,null,null,null,null,""]
[null,null,null,null,null,null,""]
[null,null,null,null,null,null,""]
[null,null,null,null,null,null,""]
[null,null,null,null,null,null,""]
[null,null,null,null,null,null,""]
[null,null,null,null,null,null,""]
[null,null,null,null,null,null,""]
[null,null,null,null,null,null,""]

{"sheet":"Pests","index":3,"n_rows":14,"n_cols":3,"rows_kept":14,"cut":false,"hidden":true,"merged":[]}
["PestType","Pest","PestID"]
["Arthropod","Southern Corn Rootworm","SCR"]
["Arthropod","Spider Mites","SM"]
["Arthropod","Thrips","THRP"]
["Disease (Foliar)","Early/Late Leaf Spot","LS"]
["Disease (Foliar)","Tomato Spotted Wilt Virus","TSWV"]
["Disease (Soil Borne)","Cylindrocladium Black Rot","CBR"]
["Disease (Soil Borne)","Sclerotinia","SCL"]
["Disease (Soil Borne)","Southern Stem Rot","SSR"]
["Foliar-feeding Insects","Caterpillars and Worms","CNW"]
["Nematode","Northern Rootknot","NRN"]
["Nematode","Peanut Rootknot","PRN"]
["Nematode","Sting","SN"]
["Plant","Weeds","WDS"]

{"sheet":"Lists","index":4,"n_rows":41,"n_cols":41,"rows_kept":41,"cut":false,"hidden":true,"merged":[]}
["Category","Category_Pest","CategoryID","Category_List","Category_List_Type","Months","Land_Area_Units","Crop_Practices\\Cultivar","Treatments\\Post_Insecticide","Pest_History\\Southern_Corn_Rootworm","Leaf_Spot_Management\\Spray_Schedule","Crops","Treatments\\Pre_Emergence","Pest_History\\Leaf_Spot","Crop_Practices\\Plant_Density","Crop_Practices\\Planting_Date_CBR","Pest_History\\Cylindrocladium_Black_Rot","Treatments\\Fumigants","Crop_Practices\\Row_Pattern","Pest_History\\Sclerotinia","Pest_History\\Southern_Stem_Rot","Nematode_History","Treatments\\Weed_Mgmt","Field\\Weeds","Field\\Borders_Early_Season","Field\\Borders_Late_Season","Field\\Irrigation","Field\\Seedbed","Field\\Previous_Weed_Control","Field_Soil\\Drainage_Class","Field_Soil\\pH_CBR","Field_Soil\\pH_SCL","Field_Soil\\Texture","Crop_Practices\\Planting_Date_SCR","Crop_Practices\\Planting_Date_THRP","Crop_Practices\\Planting_Date_LS","Crop_Practices\\Planting_Date_TSWV","Crop_Practices\\Planting_Date_SCL","Leaf_Spot_Management\\Chlorothalonil_Applications","Crop_Practices\\Planting_Date_CNW","Leaf_Spot_Management\\Fungicide_Resistance"]
["Crop_Practices\\Cultivar",null,"Crop_Practices\\Cultivar","Crop_Practices\\Cultivar","Single","(01) January","ac","Bailey","01|None","01|No History","Advisory throughout season","Clary Sage","Acephate","01|No history","1 to 2 plants/row ft.","001 to 125","01|No History","01|None","Single (32 to 38 inches)","No history","01|No history","01|Very Low (NCDA Index < 20)","01|None","Annual Grass","Clean","01|Not Mowed","01|Non-Irrigated","01|Conventional","01|Poor","01|Well","5.7 or lower","5.7 or lower","Loam","001 to 120","001 to 125","001 to 140","001 to 125","001 to 140","01|Less then 3","001 to 120","01|None Identified"]
["Crop_Practices\\Plant_Density",null,"Crop_Practices\\Plant_Density","Crop_Practices\\Plant_Density","Single","(02) February","ha","Bailey II","02|Acephate","02|Low","Calendar","Cotton","Admire Pro","02|Present but not a problem with a good fungicide program","3 to 4 plants/row ft.","126 to 140","02|Low (incidence < 5%)","02|Metam Sodium","Twin (7 to 10 inches)","Present and requires 0 sprays per year","02|Present but not a problem with a good fungicide program","02|Low (20 ≤ NCDA Index < 40)","02|PPI","Annual Grass (ACC and ALS Resistant)","Weeds/Brush","02|Mowed","02|Periodic Irrigation","02|No cover crop/No till","02|Fair","02|Moderately Well","5.8 or higher","5.8 to 6.5","Loamy Sand","121 to 135","126 to 135","141 to 365","126 to 135","141 to 365","02|3 or more","121 to 135","02|Group 3 (DMI)"]
["Crop_Practices\\Planting_Date","CBR","Crop_Practices\\Planting_Date","Crop_Practices\\Planting_Date_CBR","Date","(03) March",null,"Champs","03|Brigade","03|Moderate","Calendar, skipping when dry","Fallow","AgLogic","03|A problem even with good fungicide program","5 or more plants/row ft.","141 to 365","03|Moderate (incidence 5-10%)","03|Telone II",null,"Present and requires 1 spray per year","03|A problem even with good fungicide program","03|Moderate (40 ≤ NCDA Index < 60)","03|PPI + PRE","Annual Grass (ACC Resistant)",null,null,"03|Irrigated","03|No cover crop/Strip till","03|Good","03|Somewhat Poorly",null,"6.6 or higher","Sandy Loam","136 to 365","136 to 365",null,"136 to 365",null,null,"136 to 365","03|Group 7 (SDHI)"]
["Crop_Practices\\Planting_Date","CNW","Crop_Practices\\Planting_Date","Crop_Practices\\Planting_Date_CNW","Date","(04) April",null,"Emery","04|Comite","04|High",null,"Field Corn","Imidacloprid (Generic)",null,null,null,"04|High (incidence > 10%)",null,null,"Present and requires 2 or more sprays per year",null,"04|High (NCDA Index ≥ 60)","04|PPL","Annual Grass (ALS Resistant)",null,null,null,"04|Rye/No till",null,"04|Poorly",null,null,null,null,null,null,null,null,null,null,"04|Group 11 (QoI)"]
["Crop_Practices\\Planting_Date","LS","Crop_Practices\\Planting_Date","Crop_Practices\\Planting_Date_LS","Date","(05) May",null,"Sullivan","05|Danitol",null,null,"Forage Grasses","None",null,null,null,null,null,null,null,null,null,"05|PRE","C. Lambsquarter",null,null,null,"05|Rye/Strip till",null,null,null,null,null,null,null,null,null,null,null,null,"05|Group M (Multi-Site)"]
["Crop_Practices\\Planting_Date","SCL","Crop_Practices\\Planting_Date","Crop_Practices\\Planting_Date_SCL","Date","(06) June",null,"Wynne","06|Lannate",null,null,"Melons","Phorate 20G",null,null,null,null,null,null,null,null,null,"06|PRE + EPOST","C. Ragweed",null,null,null,"06|Fertilized Rye/No till",null,null,null,null,null,null,null,null,null,null,null,null,"06|Group 3 and 7"]
["Crop_Practices\\Planting_Date","SCR","Crop_Practices\\Planting_Date","Crop_Practices\\Planting_Date_SCR","Date","(07) July",null,null,"07|Lorsban (Pilot 15 G)",null,null,"Other","Proline",null,null,null,null,null,null,null,null,null,"07|PRE + EPOST + Hand Weed","C. Ragweed (ALS and PPO Resistant)",null,null,null,"07|Fertilized Rye/Strip till",null,null,null,null,null,null,null,null,null,null,null,null,"07|Group 3 and 11"]
["Crop_Practices\\Planting_Date","THRP","Crop_Practices\\Planting_Date","Crop_Practices\\Planting_Date_THRP","Date","(08) August",null,null,"08|Non-pyrethroids",null,null,"Peanut","Propulse",null,null,null,null,null,null,null,null,null,"08|PRE + EPOST + MPOST","C. Ragweed (ALS Resistant)",null,null,null,"08|Wheat/No till",null,null,null,null,null,null,null,null,null,null,null,null,"08|Group 3 and M"]
["Crop_Practices\\Planting_Date","TSWV","Crop_Practices\\Planting_Date","Crop_Practices\\Planting_Date_TSWV","Date","(09) September",null,null,"09|Portal",null,null,"Small Grains","Thimet 20G",null,null,null,null,null,null,null,null,null,"09|PRE + EPOST + MPOST + Hand Weed","C. Ragweed (PPO Resistant)",null,null,null,"09|Wheat/Strip till",null,null,null,null,null,null,null,null,null,null,null,null,"09|Group 7 and 11"]
["Crop_Practices\\Row_Pattern",null,"Crop_Practices\\Row_Pattern","Crop_Practices\\Row_Pattern","Single","(10) October",null,null,"10|Pyrethroids",null,null,"Sorghum","Velum Total",null,null,null,null,null,null,null,null,null,"10|PRE + EPOST + MPOST + LPOST","C. Ragweed and Palmer A.",null,null,null,null,null,null,null,null,null,null,null,null,null,null,null,null,"10|Group 7 and M"]
["Field\\Borders_Early_Season",null,"Field\\Borders_Early_Season","Field\\Borders_Early_Season","Single","(11) November",null,null,null,null,null,"Soybean",null,null,null,null,null,null,null,null,null,null,"11|PRE + EPOST + MPOST + LPOST + Hand Weed","C. Ragweed and Palmer A. (ALS and PPO Resistant)",null,null,null,null,null,null,null,null,null,null,null,null,null,null,null,null,"11|Group 11 and M"]
["Field\\Borders_Late_Season",null,"Field\\Borders_Late_Season","Field\\Borders_Late_Season","Single","(12) December",null,null,null,null,null,"Sweet Corn",null,null,null,null,null,null,null,null,null,null,"12|EPOST","C. Ragweed and Palmer A. (ALS Resistant)",null,null,null,null,null,null,null,null,null,null,null,null,null,null,null,null,"12|Group 3, 7, and 11"]
["Field\\Irrigation",null,"Field\\Irrigation","Field\\Irrigation","Single",null,null,null,null,null,null,"Sweetpotato",null,null,null,null,null,null,null,null,null,null,"13|MPOST","C. Ragweed and Palmer A. (PPO Resistant)",null,null,null,null,null,null,null,null,null,null,null,null,null,null,null,null,"13|Group 3, 7, and M"]
["Field\\Previous_Weed_Control",null,"Field\\Previous_Weed_Control","Field\\Previous_Weed_Control","Single",null,null,null,null,null,null,"Tobacco",null,null,null,null,null,null,null,null,null,null,"14|LPOST","Eclipta",null,null,null,null,null,null,null,null,null,null,null,null,null,null,null,null,"14|Group 3, 11, and M"]
["Field\\Seedbed",null,"Field\\Seedbed","Field\\Seedbed","Single",null,null,null,null,null,null,"Vegetables",null,null,null,null,null,null,null,null,null,null,null,"Others",null,null,null,null,null,null,null,null,null,null,null,null,null,null,null,null,"15|Group 7, 11, and M"]
["Field\\Weeds",null,"Field\\Weeds","Field\\Weeds","Single",null,null,null,null,null,null,null,null,null,null,null,null,null,null,null,null,null,null,"Palmer A.",null,null,null,null,null,null,null,null,null,null,null,null,null,null,null,null,"16|Group 3, 7, 11, and M"]
["Field_Crop_History\\1_Year_Ago",null,"Field_Crop_History\\1_Year_Ago","Crops","Single",null,null,null,null,null,null,null,null,null,null,null,null,null,null,null,null,null,null,"Palmer A. (ALS  and PPO Resistant)"]
["Field_Crop_History\\2_Years_Ago",null,"Field_Crop_History\\2_Years_Ago","Crops","Single",null,null,null,null,null,null,null,null,null,null,null,null,null,null,null,null,null,null,"Palmer A. (ALS Resistant)"]
["Field_Crop_History\\3_Years_Ago",null,"Field_Crop_History\\3_Years_Ago","Crops","Single",null,null,null,null,null,null,null,null,null,null,null,null,null,null,null,null,null,null,"Palmer A. (PPO Resistant)"]
["Field_Crop_History\\4_Years_ago",null,"Field_Crop_History\\4_Years_ago","Crops","Single",null,null,null,null,null,null,null,null,null,null,null,null,null,null,null,null,null,null,"Sedges"]
["Field_Soil\\Drainage_Class",null,"Field_Soil\\Drainage_Class","Field_Soil\\Drainage_Class","Single",null,null,null,null,null,null,null,null,null,null,null,null,null,null,null,null,null,null,"Sedges (ALS Resistant)"]
["Field_Soil\\pH","CBR","Field_Soil\\pH","Field_Soil\\pH_CBR","pH",null,null,null,null,null,null,null,null,null,null,null,null,null,null,null,null,null,null,"Sicklepod"]
["Field_Soil\\pH","SCL","Field_Soil\\pH","Field_Soil\\pH_SCL","pH"]
["Field_Soil\\Texture",null,"Field_Soil\\Texture","Field_Soil\\Texture","Single"]
["Leaf_Spot_Management\\Chlorothalonil_Applications",null,"Leaf_Spot_Management\\Chlorothalonil_Applications","Leaf_Spot_Management\\Chlorothalonil_Applications","Single"]
["Leaf_Spot_Management\\Fungicide_Resistance",null,"Leaf_Spot_Management\\Fungicide_Resistance","Leaf_Spot_Management\\Fungicide_Resistance","Single"]
["Leaf_Spot_Management\\Spray_Schedule",null,"Leaf_Spot_Management\\Spray_Schedule","Leaf_Spot_Management\\Spray_Schedule","Single"]
["Nematode_History\\Northern_Rootknot",null,"Nematode_History\\Northern_Rootknot","Nematode_History","Single"]
["Nematode_History\\Peanut_Rootknot",null,"Nematode_History\\Peanut_Rootknot","Nematode_History","Single"]
["Nematode_History\\Sting",null,"Nematode_History\\Sting","Nematode_History","Single"]
["Pest\\Host_Crops",null,"Pest\\Host_Crops","Crops","Single"]
["Pest_History\\Cylindrocladium_Black_Rot",null,"Pest_History\\Cylindrocladium_Black_Rot","Pest_History\\Cylindrocladium_Black_Rot","Single"]
["Pest_History\\Leaf_Spot",null,"Pest_History\\Leaf_Spot","Pest_History\\Leaf_Spot","Single"]
["Pest_History\\Sclerotinia",null,"Pest_History\\Sclerotinia","Pest_History\\Sclerotinia","Single"]
["Pest_History\\Southern_Corn_Rootworm",null,"Pest_History\\Southern_Corn_Rootworm","Pest_History\\Southern_Corn_Rootworm","Single"]
["Pest_History\\Southern_Stem_Rot",null,"Pest_History\\Southern_Stem_Rot","Pest_History\\Southern_Stem_Rot","Single"]
["Treatments\\Fumigants",null,"Treatments\\Fumigants","Treatments\\Fumigants","Single"]
["Treatments\\Post_Insecticide",null,"Treatments\\Post_Insecticide","Treatments\\Post_Insecticide","Multi"]
["Treatments\\Pre_Emergence",null,"Treatments\\Pre_Emergence","Treatments\\Pre_Emergence","Multi"]
["Treatments\\Weed_Mgmt",null,"Treatments\\Weed_Mgmt","Treatments\\Weed_Mgmt","Single"]

{"sheet":"Costs","index":5,"n_rows":56,"n_cols":14,"rows_kept":56,"cut":false,"hidden":true,"merged":[[0,7,0,9],[0,10,0,12],[13,7,13,9],[13,10,13,12],[17,7,17,9],[17,10,17,12]]}
["Land Area Units ","ac",null,null,null,null,null,{"$f":"Cost_Header","v":"Cost ($/ac)"},null,null,{"$f":"CONCATENATE(\"Person Hours (hrs/\",sel_Land_Area_Units,\")\")","v":"Person Hours (hrs/ac)"}]
["Category","Item",{"$f":"CONCATENATE(\"Cost ($/\",sel_Land_Area_Units,\")\")","v":"Cost ($/ac)"},"Multiplier",{"$f":"CONCATENATE(\"Person Hours (hrs/\",sel_Land_Area_Units,\")\")","v":"Person Hours (hrs/ac)"},null,"Category","Max","Min","Sel","Max","Min","Sel","Selection"]
["Base_Cost",null,565,null,null,null,"Base_Cost",{"$f":"Cost_Base","v":565},{"$f":"Cost_Base","v":565},{"$f":"Cost_Base","v":565},{"$f":"PersonHours_Base","v":0},{"$f":"PersonHours_Base","v":0},{"$f":"PersonHours_Base","v":0}]
["Crop_Practices\\Cultivar","Bailey",45,null,null,null,"Crop_Practices\\Cultivar | Crop_Practices\\Plant_Density | Crop_Practices\\Row_Pattern",{"$f":"calcCostMax(G4,Category)","v":172.5},{"$f":"calcCostMin(G4)","v":45},{"$f":"calcCost(G4,N4,Category)","v":112.5},{"$f":"calcPersonHrsMax(G4,Category)","v":0},{"$f":"calcPersonHrsMin(G4)","v":0},{"$f":"calcPersonHrs(G4,N4,Category)","v":0},{"$f":"CONCATENATE(IF(ISBLANK(sel_Crop_Practices\\Cultivar),\"\",sel_Crop_Practices\\Cultivar),\" | \",IF(ISBLANK(sel_Crop_Practices\\Plant_Density),\"\",sel_Crop_Practices\\Plant_Density),\" | \",IF(ISBLANK(sel_Crop_Practices\\Row_Pattern),\"\",sel_Crop_Practices\\Row_Pattern))","v":"Bailey II | 5 or more plants/row ft. | Single (32 to 38 inches)"}]
["Crop_Practices\\Cultivar","Bailey II",45,null,null,null,"Field\\Irrigation",{"$f":"calcCostMax(G5,Category)","v":100},{"$f":"calcCostMin(G5)","v":0},{"$f":"calcCost(G5,N5,Category)","v":100},{"$f":"calcPersonHrsMax(G5,Category)","v":0},{"$f":"calcPersonHrsMin(G5)","v":0},{"$f":"calcPersonHrs(G5,N5,Category)","v":0},{"$f":"CONCATENATE(IF(ISBLANK(sel_Field\\Irrigation),\"\",sel_Field\\Irrigation))","v":"Irrigated"}]
["Crop_Practices\\Cultivar","Champs",50,null,null,null,"Leaf_Spot_Management\\Spray_Schedule",{"$f":"calcCostMax(G6,Category)","v":83},{"$f":"calcCostMin(G6)","v":51},{"$f":"calcCost(G6,N6,Category)","v":83},{"$f":"calcPersonHrsMax(G6,Category)","v":0},{"$f":"calcPersonHrsMin(G6)","v":0},{"$f":"calcPersonHrs(G6,N6,Category)","v":0},{"$f":"CONCATENATE(IF(ISBLANK(sel_Leaf_Spot_Management\\Spray_Schedule),\"\",sel_Leaf_Spot_Management\\Spray_Schedule))","v":"Calendar"}]
["Crop_Practices\\Cultivar","Emery",60,null,null,null,"Treatments\\Fumigants",{"$f":"calcCostMax(G7,Category)","v":45},{"$f":"calcCostMin(G7)","v":0},{"$f":"calcCost(G7,N7,Category)","v":0},{"$f":"calcPersonHrsMax(G7,Category)","v":0},{"$f":"calcPersonHrsMin(G7)","v":0},{"$f":"calcPersonHrs(G7,N7,Category)","v":0},{"$f":"CONCATENATE(IF(ISBLANK(sel_Treatments\\Fumigants),\"\",sel_Treatments\\Fumigants))","v":"None"}]
["Crop_Practices\\Cultivar","Sullivan",47,null,null,null,"Treatments\\Post_Insecticide",{"$f":"calcCostMax(G8,Category)","v":176},{"$f":"calcCostMin(G8)","v":0},{"$f":"calcCost(G8,N8,Category)","v":35},{"$f":"calcPersonHrsMax(G8,Category)","v":0},{"$f":"calcPersonHrsMin(G8)","v":0},{"$f":"calcPersonHrs(G8,N8,Category)","v":0},{"$f":"CONCATENATE(IF(ISBLANK(sel_Treatments\\Post_Insecticide),\"\",sel_Treatments\\Post_Insecticide))","v":"Lorsban (Pilot 15 G)"}]
["Crop_Practices\\Cultivar","Wynne",60,null,null,null,"Treatments\\Pre_Emergence",{"$f":"calcCostMax(G9,Category)","v":162},{"$f":"calcCostMin(G9)","v":0},{"$f":"calcCost(G9,N9,Category)","v":16},{"$f":"calcPersonHrsMax(G9,Category)","v":0},{"$f":"calcPersonHrsMin(G9)","v":0},{"$f":"calcPersonHrs(G9,N9,Category)","v":0},{"$f":"CONCATENATE(IF(ISBLANK(sel_Treatments\\Pre_Emergence),\"\",sel_Treatments\\Pre_Emergence))","v":"Thimet 20G"}]
["Crop_Practices\\Plant_Density","1 to 2 plants/row ft.",null,1,null,null,"Treatments\\Weed_Mgmt",{"$f":"calcCostMax(G10,Category)","v":120},{"$f":"calcCostMin(G10)","v":0},{"$f":"calcCost(G10,N10,Category)","v":0},{"$f":"calcPersonHrsMax(G10,Category)","v":0},{"$f":"calcPersonHrsMin(G10)","v":0},{"$f":"calcPersonHrs(G10,N10,Category)","v":0},{"$f":"CONCATENATE(IF(ISBLANK(sel_Treatments\\Weed_Mgmt),\"\",sel_Treatments\\Weed_Mgmt))","v":"None"}]
["Crop_Practices\\Plant_Density","3 to 4 plants/row ft.",null,1.75]
["Crop_Practices\\Plant_Density","5 or more plants/row ft.",null,2.5,null,null,"Total",{"$f":"SUM(H$3:H10)","v":1423.5},{"$f":"SUM(I$3:I10)","v":661},{"$f":"IF(ISERROR(SUM(J$3:J10)),0,SUM(J$3:J10))","v":911.5},{"$f":"SUM(K$3:K10)","v":0},{"$f":"SUM(L$3:L10)","v":0},{"$f":"IF(ISERROR(SUM(M$3:M10)),0,SUM(M$3:M10))","v":0}]
["Crop_Practices\\Row_Pattern","Single (32 to 38 inches)",null,1]
["Crop_Practices\\Row_Pattern","Twin (7 to 10 inches)",null,1.1499999999999999,null,null,null,{"$f":"CONCATENATE(\"Cost Thresholds ($/\",sel_Land_Area_Units,\")\")","v":"Cost Thresholds ($/ac)"},null,null,{"$f":"CONCATENATE(\"Person Hour Thresholds (hrs/\",sel_Land_Area_Units,\")\")","v":"Person Hour Thresholds (hrs/ac)"}]
["Field\\Irrigation","Non-Irrigated",0,null,null,null,"High",{"$f":"Cost_Min + 0.66667*(Cost_Max-Cost_Min)","v":1169.335875},null,null,{"$f":"PersonHours_Min + 0.66667*(PersonHours_Max-PersonHours_Min)","v":0}]
["Field\\Irrigation","Periodic Irrigation",50,null,null,null,"Moderate",{"$f":"Cost_Min + 0.33333*(Cost_Max-Cost_Min)","v":915.16412500000001},null,null,{"$f":"PersonHours_Min + 0.33333*(PersonHours_Max-PersonHours_Min)","v":0}]
["Field\\Irrigation","Irrigated",100]
["Leaf_Spot_Management\\Spray_Schedule","Advisory throughout season",51,null,null,null,null,{"$f":"CONCATENATE(\"Cost Ranges ($/\",sel_Land_Area_Units,\")\")","v":"Cost Ranges ($/ac)"},null,null,{"$f":"CONCATENATE(\"Person Hour Ranges (hrs/\",sel_Land_Area_Units,\")\")","v":"Person Hour Ranges (hrs/ac)"}]
["Leaf_Spot_Management\\Spray_Schedule","Calendar",83,null,null,null,"Base",{"$f":"Cost_Base","v":565},null,null,{"$f":"PersonHours_Base","v":0}]
["Leaf_Spot_Management\\Spray_Schedule","Calendar, skipping when dry",67,null,null,null,"Low",{"$f":"Cost_Moderate-Cost_Base","v":350.16412500000001},null,null,{"$f":"PersonHours_Moderate-PersonHours_Base","v":0}]
["Treatments\\Fumigants","None",0,null,null,null,"Moderate",{"$f":"Cost_High-Cost_Moderate","v":254.17174999999997},null,null,{"$f":"PersonHours_High-PersonHours_Moderate","v":0}]
["Treatments\\Fumigants","Metam Sodium",30,null,null,null,"High",{"$f":"Cost_Max-Cost_High","v":254.16412500000001},null,null,{"$f":"PersonHours_Max-PersonHours_High","v":0}]
["Treatments\\Fumigants","Telone II",45]
["Treatments\\Post_Insecticide","None",0,null,null,null,{"$f":"CONCATENATE(\"Estimated Cost: $\",ROUNDUP(TRUNC(Cost,2),0),\"/\",sel_Land_Area_Units)","v":"Estimated Cost: $912/ac"}]
["Treatments\\Post_Insecticide","Acephate",8]
["Treatments\\Post_Insecticide","Brigade",18]
["Treatments\\Post_Insecticide","Comite",26]
["Treatments\\Post_Insecticide","Danitol",26]
["Treatments\\Post_Insecticide","Lannate",23]
["Treatments\\Post_Insecticide","Lorsban (Pilot 15 G)",35]
["Treatments\\Post_Insecticide","Non-pyrethroids",15,null,null,null,{"$f":"CONCATENATE(\"Estimated Person Hours: \",ROUNDUP(TRUNC(PersonHours,2),0),\" hrs/\",sel_Land_Area_Units)","v":"Estimated Person Hours: 0 hrs/ac"}]
["Treatments\\Post_Insecticide","Portal",25]
["Treatments\\Pre_Emergence","Acephate",15]
["Treatments\\Pre_Emergence","Admire Pro",19]
["Treatments\\Pre_Emergence","AgLogic",20]
["Treatments\\Pre_Emergence","Imidacloprid (Generic)",12]
["Treatments\\Pre_Emergence","None",0]
["Treatments\\Pre_Emergence","Phorate 20G",12]
["Treatments\\Pre_Emergence","Proline",22]
["Treatments\\Pre_Emergence","Propulse",20]
["Treatments\\Pre_Emergence","Thimet 20G",16]
["Treatments\\Pre_Emergence","Velum Total",26]
["Treatments\\Weed_Mgmt","None",0]
["Treatments\\Weed_Mgmt","PPI",10]
["Treatments\\Weed_Mgmt","PPI + PRE",25]
["Treatments\\Weed_Mgmt","PPL",10]
["Treatments\\Weed_Mgmt","PRE",15]
["Treatments\\Weed_Mgmt","PRE + EPOST",30]
["Treatments\\Weed_Mgmt","PRE + EPOST + Hand Weed",90]
["Treatments\\Weed_Mgmt","PRE + EPOST + MPOST",45]
["Treatments\\Weed_Mgmt","PRE + EPOST + MPOST + Hand Weed",105]
["Treatments\\Weed_Mgmt","PRE + EPOST + MPOST + LPOST",60]
["Treatments\\Weed_Mgmt","PRE + EPOST + MPOST + LPOST + Hand Weed",120]
["Treatments\\Weed_Mgmt","EPOST",15]
["Treatments\\Weed_Mgmt","MPOST",15]
["Treatments\\Weed_Mgmt","LPOST",15]

{"sheet":"Logos","index":6,"n_rows":0,"n_cols":0,"rows_kept":0,"cut":false,"hidden":true,"merged":[]}

{"sheet":"Pest_Report","index":7,"n_rows":44,"n_cols":4,"rows_kept":44,"cut":false,"hidden":true,"merged":[[36,3,41,3],[43,0,43,3],[16,0,16,1],[16,2,16,3],[17,3,22,3],[30,0,30,1],[30,2,30,3],[23,0,23,1],[23,2,23,3],[24,3,29,3],[31,3,34,3],[35,0,35,1],[35,2,35,3],[12,0,12,1],[12,2,12,3],[13,3,15,3],[0,0,0,3],[5,0,5,1],[5,2,5,3],[6,3,8,3],[9,0,9,1],[9,2,9,3],[10,3,11,3]]}
["Peanut - Weeds Risk Summary"]
[]
[]
[]
[]
["Crop Practices\\Plant Density",null,"Risk Points"]
[null,"1 to 2 plants/row ft.",30,5]
[null,"3 to 4 plants/row ft.",20]
[null,"5 or more plants/row ft.*",5]
["Field\\Irrigation",null,"Risk Points"]
[null,"Irrigated*, Periodic Irrigation",20,20]
[null,"Non-Irrigated",0]
["Field\\Previous Weed Control",null,"Risk Points"]
[null,"Poor",30,10]
[null,"Fair",20]
[null,"Good*",10]
["Field\\Seedbed",null,"Risk Points"]
[null,"Conventional*, No cover crop/Strip till",90,90]
[null,"No cover crop/No till, Wheat/Strip till",80]
[null,"Wheat/No till",60]
[null,"Rye/Strip till",50]
[null,"Fertilized Rye/Strip till, Rye/No till",30]
[null,"Fertilized Rye/No till",10]
["Field\\Weeds",null,"Risk Points"]
[null,"C. Ragweed and Palmer A. (ALS and PPO Resistant)",150,70]
[null,"C. Ragweed and Palmer A. (PPO Resistant), Palmer A. (ALS  and PPO Resistant), Palmer A. (PPO Resistant)",100]
[null,"Annual Grass (ACC and ALS Resistant), C. Ragweed and Palmer A.*, C. Ragweed and Palmer A. (ALS Resistant), Palmer A., Palmer A. (ALS Resistant)",70]
[null,"Annual Grass (ACC Resistant), Annual Grass (ALS Resistant), C. Ragweed (ALS and PPO Resistant), C. Ragweed (PPO Resistant), Sedges (ALS Resistant)",50]
[null,"Annual Grass, C. Lambsquarter, C. Ragweed, C. Ragweed (ALS Resistant), Eclipta, Sedges, Sicklepod",20]
[null,"Others",10]
["Field Crop History\\1 Year Ago",null,"Risk Points"]
[null,"Fallow, Soybean, Sweetpotato, Tobacco",15,5]
[null,"Clary Sage, Melons, Other, Peanut, Sorghum, Vegetables",10]
[null,"Cotton*, Forage Grasses, Small Grains, Sweet Corn",5]
[null,"Field Corn",0]
["Treatments\\Weed Mgmt",null,"Risk Points"]
[null,"EPOST, None*, PPL",0,0]
[null,"LPOST, PPI, PRE",-55]
[null,"MPOST, PPI + PRE, PRE + EPOST",-90]
[null,"PRE + EPOST + MPOST",-105]
[null,"PRE + EPOST + MPOST + LPOST",-130]
[null,"PRE + EPOST + Hand Weed, PRE + EPOST + MPOST + Hand Weed, PRE + EPOST + MPOST + LPOST + Hand Weed",-150]
[]
["* Selected options used in calculating pest risk.\r\nNote: Reduction in pest risk value by a control practice will be less under low risk conditions."]

{"sheet":"SCR","index":8,"n_rows":24,"n_cols":12,"rows_kept":24,"cut":false,"hidden":true,"merged":[[0,0,0,3]]}
["Southern Corn Rootworm"]
["Category","Risk Level","Risk Level Description","Points",null,null,null,"Category","Max","Min","Risk","Selection"]
["Crop_Practices\\Cultivar",1,"Bailey|Bailey II|Emery|Sullivan|Wynne",20,null,null,null,"Field\\Irrigation",45,0,{"$f":"getRiskValue(\"A:A\",H3,J3,L3,\"Single\")","v":45},{"$f":"IF(ISBLANK(sel_Field\\Irrigation),\"\",sel_Field\\Irrigation)","v":"Irrigated"}]
["Crop_Practices\\Cultivar",2,"Champs",10,null,null,null,"Crop_Practices\\Cultivar",20,10,{"$f":"getRiskValue(\"A:A\",H4,J4,L4,\"Single\")","v":20},{"$f":"IF(ISBLANK(sel_Crop_Practices\\Cultivar),\"\",sel_Crop_Practices\\Cultivar)","v":"Bailey II"}]
["Crop_Practices\\Planting_Date",1,"136 to 365",15,null,null,null,"Field_Soil\\Drainage_Class",20,5,{"$f":"getRiskValue(\"A:A\",H5,J5,L5,\"Single\")","v":5},{"$f":"IF(ISBLANK(sel_Field_Soil\\Drainage_Class),\"\",sel_Field_Soil\\Drainage_Class)","v":"Well"}]
["Crop_Practices\\Planting_Date",2,"121 to 135",10,null,null,null,"Crop_Practices\\Planting_Date",15,5,{"$f":"getRiskValue(\"A:A\",H6,J6,L6,\"Date\")","v":10},{"$f":"IF(ISBLANK(sel_Crop_Practices\\Planting_Date),\"\",sel_Crop_Practices\\Planting_Date)","v":"2021-05-01"}]
["Crop_Practices\\Planting_Date",3,"001 to 120",5,null,null,null,"Field_Soil\\Texture",15,5,{"$f":"getRiskValue(\"A:A\",H7,J7,L7,\"Single\")","v":5},{"$f":"IF(ISBLANK(sel_Field_Soil\\Texture),\"\",sel_Field_Soil\\Texture)","v":"Loamy Sand"}]
["Field\\Irrigation",1,"Irrigated",45,null,null,null,"Pest_History\\Southern_Corn_Rootworm",15,0,{"$f":"getRiskValue(\"A:A\",H8,J8,L8,\"Single\")","v":0},{"$f":"IF(ISBLANK(sel_Pest_History\\Southern_Corn_Rootworm),\"\",sel_Pest_History\\Southern_Corn_Rootworm)","v":"No History"}]
["Field\\Irrigation",2,"Periodic Irrigation",20,null,null,null,"Treatments\\Post_Insecticide",0,-30,{"$f":"getRiskValue(\"A:A\",H9,J9,L9,\"Multi\")","v":-30},{"$f":"IF(ISBLANK(sel_Treatments\\Post_Insecticide),\"\",sel_Treatments\\Post_Insecticide)","v":"Lorsban (Pilot 15 G)"}]
["Field\\Irrigation",3,"Non-Irrigated",0]
["Field_Soil\\Drainage_Class",1,"Poorly",20,null,null,null,"Total",{"$f":"SUMIF(I3:I9,\">0\")","v":130},{"$f":"SUMIF(J3:J9,\">0\")","v":25},{"$f":"MAX(SCR_MinRiskIndex,SUM(K3:K9))","v":55}]
["Field_Soil\\Drainage_Class",2,"Somewhat Poorly",15]
["Field_Soil\\Drainage_Class",3,"Moderately Well",10,null,null,null,"High Risk Index",70]
["Field_Soil\\Drainage_Class",4,"Well",5,null,null,null,"Moderate Risk Index",45]
["Field_Soil\\Texture",1,"Loam",15]
["Field_Soil\\Texture",2,"Sandy Loam",10]
["Field_Soil\\Texture",3,"Loamy Sand",5]
["Pest_History\\Southern_Corn_Rootworm",1,"High",15]
["Pest_History\\Southern_Corn_Rootworm",2,"Moderate",10]
["Pest_History\\Southern_Corn_Rootworm",3,"Low",5]
["Pest_History\\Southern_Corn_Rootworm",4,"No History",0]
["Treatments\\Post_Insecticide",1,"None|Brigade|Comite|Danitol|Portal",0]
["Treatments\\Post_Insecticide",2,"Acephate|Lannate|Non-pyrethroids|Pyrethroids",-10]
["Treatments\\Post_Insecticide",3,"Lorsban (Pilot 15 G)",-30]

{"sheet":"SM","index":9,"n_rows":25,"n_cols":12,"rows_kept":25,"cut":false,"hidden":true,"merged":[[0,0,0,3]]}
["Spider Mites"]
["Category","Risk Level","Risk Level Description","Points",null,null,null,"Category","Max","Min","Risk","Selection"]
["Field\\Borders_Early_Season",1,"Weeds/Brush",15,null,null,null,"Treatments\\Post_Insecticide",40,-30,{"$f":"getRiskValue(\"A:A\",H3,J3,L3,\"Multi\")","v":40},{"$f":"IF(ISBLANK(sel_Treatments\\Post_Insecticide),\"\",sel_Treatments\\Post_Insecticide)","v":"Lorsban (Pilot 15 G)"}]
["Field\\Borders_Early_Season",2,"Clean",5,null,null,null,"Leaf_Spot_Management\\Spray_Schedule",30,10,{"$f":"getRiskValue(\"A:A\",H4,J4,L4,\"Single\")","v":30},{"$f":"IF(ISBLANK(sel_Leaf_Spot_Management\\Spray_Schedule),\"\",sel_Leaf_Spot_Management\\Spray_Schedule)","v":"Calendar"}]
["Field\\Borders_Late_Season",1,"Mowed",20,null,null,null,"Field\\Borders_Late_Season",20,5,5,{"$f":"IF(ISBLANK(sel_Field\\Borders_Late_Season),\"\",sel_Field\\Borders_Late_Season)","v":"Not Mowed"}]
["Field\\Borders_Late_Season",2,"Not Mowed",5,null,null,null,"Field\\Irrigation",20,5,5,{"$f":"IF(ISBLANK(sel_Field\\Irrigation),\"\",sel_Field\\Irrigation)","v":"Irrigated"}]
["Field\\Irrigation",1,"Non-Irrigated",20,null,null,null,"Pest\\Host_Crops",20,5,15,{"$f":"IF(ISBLANK(sel_Pest\\Host_Crops),\"\",sel_Pest\\Host_Crops)","v":"Field Corn"}]
["Field\\Irrigation",2,"Periodic Irrigation",13,null,null,null,"Field\\Borders_Early_Season",15,5,5,{"$f":"IF(ISBLANK(sel_Field\\Borders_Early_Season),\"\",sel_Field\\Borders_Early_Season)","v":"Clean"}]
["Field\\Irrigation",3,"Irrigated",5,null,null,null,"Leaf_Spot_Management\\Chlorothalonil_Applications",10,5,10,{"$f":"IF(ISBLANK(sel_Leaf_Spot_Management\\Chlorothalonil_Applications),\"\",sel_Leaf_Spot_Management\\Chlorothalonil_Applications)","v":"3 or more"}]
["Leaf_Spot_Management\\Chlorothalonil_Applications",1,"3 or more",10]
["Leaf_Spot_Management\\Chlorothalonil_Applications",2,"Less then 3",5,null,null,null,"Total",{"$f":"SUMIF(I3:I9,\">0\")","v":155},{"$f":"SUMIF(J3:J9,\">0\")","v":35},{"$f":"MAX(SM_MinRiskIndex,SUM(K3:K9))","v":110}]
["Leaf_Spot_Management\\Spray_Schedule",1,"Calendar",30]
["Leaf_Spot_Management\\Spray_Schedule",2,"Calendar, skipping when dry",20,null,null,null,"High Risk Index",110]
["Leaf_Spot_Management\\Spray_Schedule",3,"Advisory throughout season",10,null,null,null,"Moderate Risk Index",80]
["Pest\\Host_Crops",1,"Sweet Corn",20]
["Pest\\Host_Crops",2,"Field Corn",15]
["Pest\\Host_Crops",3,"Clary Sage|Cotton|Melons|Peanut|Small Grains|Sorghum|Soybean|Tobacco|Vegetables",10]
["Pest\\Host_Crops",4,"Fallow|Forage Grasses|Other|Sweetpotato",5]
["Treatments\\Post_Insecticide",1,"Lorsban (Pilot 15 G)",40]
["Treatments\\Post_Insecticide",2,"Lannate",20]
["Treatments\\Post_Insecticide",3,"Acephate|Pyrethroids",15]
["Treatments\\Post_Insecticide",4,"Non-pyrethroids",10]
["Treatments\\Post_Insecticide",5,"None|Brigade",5]
["Treatments\\Post_Insecticide",6,"Comite|Danitol",-15]
["Treatments\\Post_Insecticide",7,"Portal",-30]

{"sheet":"THRP","index":10,"n_rows":14,"n_cols":12,"rows_kept":14,"cut":false,"hidden":true,"merged":[[0,0,0,3]]}
["Thrips"]
["Category","Risk Level","Risk Level Description","Points",null,null,null,"Category","Max","Min","Risk","Selection"]
["Crop_Practices\\Plant_Density",1,"1 to 2 plants/row ft.",20,null,null,null,"Crop_Practices\\Planting_Date",30,10,{"$f":"getRiskValue(\"A:A\",H3,J3,L3,\"Date\")","v":30},{"$f":"IF(ISBLANK(sel_Crop_Practices\\Planting_Date),\"\",sel_Crop_Practices\\Planting_Date)","v":"2021-05-01"}]
["Crop_Practices\\Plant_Density",2,"3 to 4 plants/row ft.",10,null,null,null,"Crop_Practices\\Plant_Density",20,5,{"$f":"getRiskValue(\"A:A\",H4,J4,L4,\"Single\")","v":5},{"$f":"IF(ISBLANK(sel_Crop_Practices\\Plant_Density),\"\",sel_Crop_Practices\\Plant_Density)","v":"5 or more plants/row ft."}]
["Crop_Practices\\Plant_Density",3,"5 or more plants/row ft.",5,null,null,null,"Field\\Seedbed",15,5,{"$f":"getRiskValue(\"A:A\",H5,J5,L5,\"Single\")","v":15},{"$f":"IF(ISBLANK(sel_Field\\Seedbed),\"\",sel_Field\\Seedbed)","v":"Conventional"}]
["Crop_Practices\\Planting_Date",1,"001 to 125",30,null,null,null,"Treatments\\Post_Insecticide",0,-15,{"$f":"getRiskValue(\"A:A\",H6,J6,L6,\"Multi\")","v":0},{"$f":"IF(ISBLANK(sel_Treatments\\Post_Insecticide),\"\",sel_Treatments\\Post_Insecticide)","v":"Lorsban (Pilot 15 G)"}]
["Crop_Practices\\Planting_Date",2,"126 to 135",15,null,null,null,"Treatments\\Pre_Emergence",0,-25,{"$f":"getRiskValue(\"A:A\",H7,J7,L7,\"Multi\")","v":-25},{"$f":"IF(ISBLANK(sel_Treatments\\Pre_Emergence),\"\",sel_Treatments\\Pre_Emergence)","v":"Thimet 20G"}]
["Crop_Practices\\Planting_Date",3,"136 to 365",10]
["Field\\Seedbed",1,"Conventional",15,null,null,null,"Total",{"$f":"SUMIF(I3:I7,\">0\")","v":65},{"$f":"SUMIF(J3:J7,\">0\")","v":20},{"$f":"MAX(THRP_MinRiskIndex,SUM(K3:K7))","v":25}]
["Field\\Seedbed",2,"Fertilized Rye/No till|Fertilized Rye/Strip till|No cover crop/No till|No cover crop/Strip till|Rye/No till|Rye/Strip till|Wheat/No till|Wheat/Strip till",5]
["Treatments\\Post_Insecticide",1,"None|Brigade|Comite|Danitol|Lannate|Lorsban (Pilot 15 G)|Non-pyrethroids|Portal|Pyrethroids",0,null,null,null,"High Risk Index",50]
["Treatments\\Post_Insecticide",2,"Acephate",-15,null,null,null,"Moderate Risk Index",35]
["Treatments\\Pre_Emergence",1,"None|Proline|Propulse",0]
["Treatments\\Pre_Emergence",2,"Acephate|Admire Pro|AgLogic|Imidacloprid (Generic)|Phorate 20G|Thimet 20G|Velum Total",-25]

{"sheet":"LS","index":11,"n_rows":29,"n_cols":12,"rows_kept":29,"cut":false,"hidden":true,"merged":[[0,0,0,3]]}
["Early/Late Leaf Spot"]
["Category","Risk Level","Risk Level Description","Points",null,null,null,"Category","Max","Min","Risk","Selection"]
["Crop_Practices\\Cultivar",1,"Champs",30,null,null,null,"Leaf_Spot_Management\\Fungicide_Resistance",100,5,{"$f":"getRiskValue(\"A:A\",H3,J3,L3,\"Single\")","v":5},{"$f":"IF(ISBLANK(sel_Leaf_Spot_Management\\Fungicide_Resistance),\"\",sel_Leaf_Spot_Management\\Fungicide_Resistance)","v":"None Identified"}]
["Crop_Practices\\Cultivar",2,"Bailey|Bailey II|Emery|Sullivan|Wynne",10,null,null,null,"Pest_History\\Leaf_Spot",60,5,{"$f":"getRiskValue(\"A:A\",H4,J4,L4,\"Single\")","v":20},{"$f":"IF(ISBLANK(sel_Pest_History\\Leaf_Spot),\"\",sel_Pest_History\\Leaf_Spot)","v":"Present but not a problem with a good fungicide program"}]
["Crop_Practices\\Planting_Date",1,"141 to 365",10,null,null,null,"Crop_Practices\\Cultivar",30,10,{"$f":"getRiskValue(\"A:A\",H5,J5,L5,\"Single\")","v":10},{"$f":"IF(ISBLANK(sel_Crop_Practices\\Cultivar),\"\",sel_Crop_Practices\\Cultivar)","v":"Bailey II"}]
["Crop_Practices\\Planting_Date",2,"001 to 140",5,null,null,null,"Field_Crop_History\\1_Year_Ago",30,3,{"$f":"getRiskValue(\"A:A\",H6,J6,L6,\"Single\")","v":3},{"$f":"IF(ISBLANK(sel_Field_Crop_History\\1_Year_Ago),\"\",sel_Field_Crop_History\\1_Year_Ago)","v":"Cotton"}]
["Field\\Irrigation",1,"Irrigated",15,null,null,null,"Field\\Irrigation",15,5,{"$f":"getRiskValue(\"A:A\",H7,J7,L7,\"Single\")","v":15},{"$f":"IF(ISBLANK(sel_Field\\Irrigation),\"\",sel_Field\\Irrigation)","v":"Irrigated"}]
["Field\\Irrigation",2,"Periodic Irrigation",10,null,null,null,"Field_Crop_History\\2_Years_Ago",15,2,{"$f":"getRiskValue(\"A:A\",H8,J8,L8,\"Single\")","v":2},{"$f":"IF(ISBLANK(sel_Field_Crop_History\\2_Years_Ago),\"\",sel_Field_Crop_History\\2_Years_Ago)","v":"Field Corn"}]
["Field\\Irrigation",3,"Non-Irrigated",5,null,null,null,"Crop_Practices\\Planting_Date",10,5,{"$f":"getRiskValue(\"A:A\",H9,J9,L9,\"Date\")","v":5},{"$f":"IF(ISBLANK(sel_Crop_Practices\\Planting_Date),\"\",sel_Crop_Practices\\Planting_Date)","v":"2021-05-01"}]
["Field\\Seedbed",1,"Conventional",10,null,null,null,"Field\\Seedbed",10,5,{"$f":"getRiskValue(\"A:A\",H10,J10,L10,\"Single\")","v":10},{"$f":"IF(ISBLANK(sel_Field\\Seedbed),\"\",sel_Field\\Seedbed)","v":"Conventional"}]
["Field\\Seedbed",2,"Fertilized Rye/No till|Fertilized Rye/Strip till|No cover crop/No till|No cover crop/Strip till|Rye/No till|Rye/Strip till|Wheat/No till|Wheat/Strip till",5,null,null,null,"Field_Crop_History\\3_Years_Ago",5,2,{"$f":"getRiskValue(\"A:A\",H11,J11,L11,\"Single\")","v":2},{"$f":"IF(ISBLANK(sel_Field_Crop_History\\3_Years_Ago),\"\",sel_Field_Crop_History\\3_Years_Ago)","v":"Cotton"}]
["Field_Crop_History\\1_Year_Ago",1,"Peanut",30,null,null,null,"Field_Crop_History\\4_Years_ago",3,1,{"$f":"getRiskValue(\"A:A\",H12,J12,L12,\"Single\")","v":3},{"$f":"IF(ISBLANK(sel_Field_Crop_History\\4_Years_ago),\"\",sel_Field_Crop_History\\4_Years_ago)","v":"Peanut"}]
["Field_Crop_History\\1_Year_Ago",2,"Clary Sage|Cotton|Fallow|Field Corn|Forage Grasses|Melons|Other|Small Grains|Sorghum|Soybean|Sweet Corn|Sweetpotato|Tobacco|Vegetables",3]
["Field_Crop_History\\2_Years_Ago",1,"Peanut",15,null,null,null,"Total",{"$f":"SUMIF(I3:I12,\">0\")","v":278},{"$f":"SUMIF(J3:J12,\">0\")","v":43},{"$f":"MAX(LS_MinRiskIndex,SUM(K3:K12))","v":75}]
["Field_Crop_History\\2_Years_Ago",2,"Clary Sage|Cotton|Fallow|Field Corn|Forage Grasses|Melons|Other|Small Grains|Sorghum|Soybean|Sweet Corn|Sweetpotato|Tobacco|Vegetables",2]
["Field_Crop_History\\3_Years_Ago",1,"Peanut",5,null,null,null,"High Risk Index",103]
["Field_Crop_History\\3_Years_Ago",2,"Clary Sage|Cotton|Fallow|Field Corn|Forage Grasses|Melons|Other|Small Grains|Sorghum|Soybean|Sweet Corn|Sweetpotato|Tobacco|Vegetables",2,null,null,null,"Moderate Risk Index",73]
["Field_Crop_History\\4_Years_ago",1,"Peanut",3]
["Field_Crop_History\\4_Years_ago",2,"Clary Sage|Cotton|Fallow|Field Corn|Forage Grasses|Melons|Other|Small Grains|Sorghum|Soybean|Sweet Corn|Sweetpotato|Tobacco|Vegetables",1]
["Leaf_Spot_Management\\Fungicide_Resistance",1,"Group 3, 7, 11, and M",100]
["Leaf_Spot_Management\\Fungicide_Resistance",2,"Group 3, 7, and M|Group 3, 11, and M|Group 7, 11, and M",90]
["Leaf_Spot_Management\\Fungicide_Resistance",3,"Group 3 and M|Group 7 and M|Group 11 and M",80]
["Leaf_Spot_Management\\Fungicide_Resistance",4,"Group M (Multi-Site)|Group 3, 7, and 11",60]
["Leaf_Spot_Management\\Fungicide_Resistance",5,"Group 3 and 7|Group 3 and 11|Group 7 and 11",30]
["Leaf_Spot_Management\\Fungicide_Resistance",6,"Group 3 (DMI)|Group 7 (SDHI)|Group 11 (QoI)",15]
["Leaf_Spot_Management\\Fungicide_Resistance",7,"None Identified",5]
["Pest_History\\Leaf_Spot",1,"A problem even with good fungicide program",60]
["Pest_History\\Leaf_Spot",2,"Present but not a problem with a good fungicide program",20]
["Pest_History\\Leaf_Spot",3,"No history",5]

{"sheet":"TSWV","index":12,"n_rows":17,"n_cols":12,"rows_kept":17,"cut":false,"hidden":true,"merged":[[0,0,0,3]]}
["Tomato Spotted Wilt Virus"]
["Category","Risk Level","Risk Level Description","Points",null,null,null,"Category","Max","Min","Risk","Selection"]
["Crop_Practices\\Cultivar",1,"Champs",30,null,null,null,"Crop_Practices\\Cultivar",30,20,{"$f":"getRiskValue(\"A:A\",H3,J3,L3,\"Single\")","v":20},{"$f":"IF(ISBLANK(sel_Crop_Practices\\Cultivar),\"\",sel_Crop_Practices\\Cultivar)","v":"Bailey II"}]
["Crop_Practices\\Cultivar",2,"Bailey|Bailey II|Emery|Sullivan|Wynne",20,null,null,null,"Crop_Practices\\Plant_Density",25,5,{"$f":"getRiskValue(\"A:A\",H4,J4,L4,\"Single\")","v":5},{"$f":"IF(ISBLANK(sel_Crop_Practices\\Plant_Density),\"\",sel_Crop_Practices\\Plant_Density)","v":"5 or more plants/row ft."}]
["Crop_Practices\\Plant_Density",1,"1 to 2 plants/row ft.",25,null,null,null,"Treatments\\Pre_Emergence",25,5,{"$f":"getRiskValue(\"A:A\",H5,J5,L5,\"Multi\")","v":5},{"$f":"IF(ISBLANK(sel_Treatments\\Pre_Emergence),\"\",sel_Treatments\\Pre_Emergence)","v":"Thimet 20G"}]
["Crop_Practices\\Plant_Density",2,"3 to 4 plants/row ft.",15,null,null,null,"Crop_Practices\\Planting_Date",20,10,{"$f":"getRiskValue(\"A:A\",H6,J6,L6,\"Date\")","v":20},{"$f":"IF(ISBLANK(sel_Crop_Practices\\Planting_Date),\"\",sel_Crop_Practices\\Planting_Date)","v":"2021-05-01"}]
["Crop_Practices\\Plant_Density",3,"5 or more plants/row ft.",5,null,null,null,"Field\\Seedbed",10,5,{"$f":"getRiskValue(\"A:A\",H7,J7,L7,\"Single\")","v":10},{"$f":"IF(ISBLANK(sel_Field\\Seedbed),\"\",sel_Field\\Seedbed)","v":"Conventional"}]
["Crop_Practices\\Planting_Date",1,"001 to 125",20,null,null,null,"Treatments\\Post_Insecticide",0,-5,{"$f":"getRiskValue(\"A:A\",H8,J8,L8,\"Multi\")","v":0},{"$f":"IF(ISBLANK(sel_Treatments\\Post_Insecticide),\"\",sel_Treatments\\Post_Insecticide)","v":"Lorsban (Pilot 15 G)"}]
["Crop_Practices\\Planting_Date",2,"136 to 365",15]
["Crop_Practices\\Planting_Date",3,"126 to 135",10,null,null,null,"Total",{"$f":"SUMIF(I3:I8,\">0\")","v":110},{"$f":"SUMIF(J3:J8,\">0\")","v":45},{"$f":"MAX(TSWV_MinRiskIndex,SUM(K3:K8))","v":60}]
["Field\\Seedbed",1,"Conventional",10]
["Field\\Seedbed",2,"Fertilized Rye/No till|Fertilized Rye/Strip till|No cover crop/No till|No cover crop/Strip till|Rye/No till|Rye/Strip till|Wheat/No till|Wheat/Strip till",5,null,null,null,"High Risk Index",90]
["Treatments\\Post_Insecticide",1,"None|Brigade|Comite|Danitol|Lannate|Lorsban (Pilot 15 G)|Non-pyrethroids|Portal|Pyrethroids",0,null,null,null,"Moderate Risk Index",65]
["Treatments\\Post_Insecticide",2,"Acephate",-5]
["Treatments\\Pre_Emergence",1,"None|Proline|Propulse",25]
["Treatments\\Pre_Emergence",2,"Acephate|Admire Pro|AgLogic|Imidacloprid (Generic)|Velum Total",10]
["Treatments\\Pre_Emergence",3,"Phorate 20G|Thimet 20G",5]

{"sheet":"CBR","index":13,"n_rows":34,"n_cols":12,"rows_kept":34,"cut":false,"hidden":true,"merged":[[0,0,0,3]]}
["Cylindrocladium Black Rot"]
["Category","Risk Level","Risk Level Description","Points",null,null,null,"Category","Max","Min","Risk","Selection"]
["Crop_Practices\\Cultivar",1,"Champs",30,null,null,null,"Crop_Practices\\Cultivar",30,20,{"$f":"getRiskValue(\"A:A\",H3,J3,L3,\"Single\")","v":20},{"$f":"IF(ISBLANK(sel_Crop_Practices\\Cultivar),\"\",sel_Crop_Practices\\Cultivar)","v":"Bailey II"}]
["Crop_Practices\\Cultivar",2,"Bailey|Bailey II|Emery|Sullivan|Wynne",20,null,null,null,"Pest_History\\Cylindrocladium_Black_Rot",25,5,{"$f":"getRiskValue(\"A:A\",H4,J4,L4,\"Single\")","v":10},{"$f":"IF(ISBLANK(sel_Pest_History\\Cylindrocladium_Black_Rot),\"\",sel_Pest_History\\Cylindrocladium_Black_Rot)","v":"Low (incidence < 5%)"}]
["Crop_Practices\\Planting_Date",1,"001 to 125",15,null,null,null,"Field_Crop_History\\1_Year_Ago",24,2,{"$f":"getRiskValue(\"A:A\",H5,J5,L5,\"Single\")","v":2},{"$f":"IF(ISBLANK(sel_Field_Crop_History\\1_Year_Ago),\"\",sel_Field_Crop_History\\1_Year_Ago)","v":"Cotton"}]
["Crop_Practices\\Planting_Date",2,"141 to 365",10,null,null,null,"Field_Crop_History\\2_Years_Ago",16,2,{"$f":"getRiskValue(\"A:A\",H6,J6,L6,\"Single\")","v":2},{"$f":"IF(ISBLANK(sel_Field_Crop_History\\2_Years_Ago),\"\",sel_Field_Crop_History\\2_Years_Ago)","v":"Field Corn"}]
["Crop_Practices\\Planting_Date",3,"126 to 140",5,null,null,null,"Crop_Practices\\Planting_Date",15,5,{"$f":"getRiskValue(\"A:A\",H7,J7,L7,\"Date\")","v":15},{"$f":"IF(ISBLANK(sel_Crop_Practices\\Planting_Date),\"\",sel_Crop_Practices\\Planting_Date)","v":"2021-05-01"}]
["Field\\Irrigation",1,"Irrigated",10,null,null,null,"Field\\Irrigation",10,0,{"$f":"getRiskValue(\"A:A\",H8,J8,L8,\"Single\")","v":10},{"$f":"IF(ISBLANK(sel_Field\\Irrigation),\"\",sel_Field\\Irrigation)","v":"Irrigated"}]
["Field\\Irrigation",2,"Periodic Irrigation",5,null,null,null,"Field_Soil\\Drainage_Class",10,0,{"$f":"getRiskValue(\"A:A\",H9,J9,L9,\"Single\")","v":0},{"$f":"IF(ISBLANK(sel_Field_Soil\\Drainage_Class),\"\",sel_Field_Soil\\Drainage_Class)","v":"Well"}]
["Field\\Irrigation",3,"Non-Irrigated",0,null,null,null,"Field_Soil\\pH",10,5,{"$f":"getRiskValue(\"A:A\",H10,J10,L10,\"pH\")","v":5},{"$f":"IF(ISBLANK(sel_Field_Soil\\pH),\"\",sel_Field_Soil\\pH)","v":6.2}]
["Field\\Seedbed",1,"Fertilized Rye/No till|Fertilized Rye/Strip till|No cover crop/No till|No cover crop/Strip till|Rye/No till|Rye/Strip till|Wheat/No till|Wheat/Strip till",5,null,null,null,"Field_Crop_History\\3_Years_Ago",8,2,{"$f":"getRiskValue(\"A:A\",H11,J11,L11,\"Single\")","v":2},{"$f":"IF(ISBLANK(sel_Field_Crop_History\\3_Years_Ago),\"\",sel_Field_Crop_History\\3_Years_Ago)","v":"Cotton"}]
["Field\\Seedbed",2,"Conventional",0,null,null,null,"Field\\Seedbed",5,0,{"$f":"getRiskValue(\"A:A\",H12,J12,L12,\"Single\")","v":0},{"$f":"IF(ISBLANK(sel_Field\\Seedbed),\"\",sel_Field\\Seedbed)","v":"Conventional"}]
["Field_Crop_History\\1_Year_Ago",1,"Peanut|Soybean|Tobacco",24,null,null,null,"Field_Crop_History\\4_Years_ago",4,2,{"$f":"getRiskValue(\"A:A\",H13,J13,L13,\"Single\")","v":4},{"$f":"IF(ISBLANK(sel_Field_Crop_History\\4_Years_ago),\"\",sel_Field_Crop_History\\4_Years_ago)","v":"Peanut"}]
["Field_Crop_History\\1_Year_Ago",2,"Clary Sage|Cotton|Fallow|Field Corn|Forage Grasses|Melons|Other|Small Grains|Sorghum|Sweet Corn|Sweetpotato|Vegetables",2,null,null,null,"Treatments\\Fumigants",0,-50,{"$f":"getRiskValue(\"A:A\",H14,J14,L14,\"Single\")","v":0},{"$f":"IF(ISBLANK(sel_Treatments\\Fumigants),\"\",sel_Treatments\\Fumigants)","v":"None"}]
["Field_Crop_History\\2_Years_Ago",1,"Peanut|Soybean|Tobacco",16,null,null,null,"Treatments\\Pre_Emergence",0,-10,{"$f":"getRiskValue(\"A:A\",H15,J15,L15,\"Multi\")","v":0},{"$f":"IF(ISBLANK(sel_Treatments\\Pre_Emergence),\"\",sel_Treatments\\Pre_Emergence)","v":"Thimet 20G"}]
["Field_Crop_History\\2_Years_Ago",2,"Clary Sage|Cotton|Fallow|Field Corn|Forage Grasses|Melons|Other|Small Grains|Sorghum|Sweet Corn|Sweetpotato|Vegetables",2]
["Field_Crop_History\\3_Years_Ago",1,"Peanut|Soybean|Tobacco",8,null,null,null,"Total",{"$f":"SUMIF(I3:I15,\">0\")","v":157},{"$f":"SUMIF(J3:J15,\">0\")","v":43},{"$f":"MAX(CBR_MinRiskIndex,SUM(K3:K15))","v":70}]
["Field_Crop_History\\3_Years_Ago",2,"Clary Sage|Cotton|Fallow|Field Corn|Forage Grasses|Melons|Other|Small Grains|Sorghum|Sweet Corn|Sweetpotato|Vegetables",2]
["Field_Crop_History\\4_Years_ago",1,"Peanut|Soybean|Tobacco",4,null,null,null,"High Risk Index",110]
["Field_Crop_History\\4_Years_ago",2,"Clary Sage|Cotton|Fallow|Field Corn|Forage Grasses|Melons|Other|Small Grains|Sorghum|Sweet Corn|Sweetpotato|Vegetables",2,null,null,null,"Moderate Risk Index",80]
["Field_Soil\\Drainage_Class",1,"Somewhat Poorly|Poorly",10]
["Field_Soil\\Drainage_Class",2,"Moderately Well",5]
["Field_Soil\\Drainage_Class",3,"Well",0]
["Field_Soil\\pH",1,"5.7 or lower",10]
["Field_Soil\\pH",2,"5.8 or higher",5]
["Pest_History\\Cylindrocladium_Black_Rot",1,"High (incidence > 10%)",25]
["Pest_History\\Cylindrocladium_Black_Rot",2,"Moderate (incidence 5-10%)",15]
["Pest_History\\Cylindrocladium_Black_Rot",3,"Low (incidence < 5%)",10]
["Pest_History\\Cylindrocladium_Black_Rot",4,"No History",5]
["Treatments\\Fumigants",1,"None|Telone II",0]
["Treatments\\Fumigants",2,"Metam Sodium",-50]
["Treatments\\Pre_Emergence",1,"Acephate|Admire Pro|AgLogic|Imidacloprid (Generic)|None|Phorate 20G|Thimet 20G",0]
["Treatments\\Pre_Emergence",2,"Velum Total",-5]
["Treatments\\Pre_Emergence",3,"Proline|Propulse",-10]

{"sheet":"SCL","index":14,"n_rows":37,"n_cols":12,"rows_kept":37,"cut":false,"hidden":true,"merged":[[0,0,0,3]]}
["Sclerotinia"]
["Category","Risk Level","Risk Level Description","Points",null,null,null,"Category","Max","Min","Risk","Selection"]
["Crop_Practices\\Cultivar",1,"Champs",85,null,null,null,"Pest_History\\Sclerotinia",145,0,{"$f":"getRiskValue(\"A:A\",H3,J3,L3,\"Single\")","v":0},{"$f":"IF(ISBLANK(sel_Pest_History\\Sclerotinia),\"\",sel_Pest_History\\Sclerotinia)","v":"No history"}]
["Crop_Practices\\Cultivar",2,"Wynne",70,null,null,null,"Crop_Practices\\Cultivar",85,55,{"$f":"getRiskValue(\"A:A\",H4,J4,L4,\"Single\")","v":55},{"$f":"IF(ISBLANK(sel_Crop_Practices\\Cultivar),\"\",sel_Crop_Practices\\Cultivar)","v":"Bailey II"}]
["Crop_Practices\\Cultivar",3,"Bailey|Bailey II|Emery|Sullivan",55,null,null,null,"Field_Crop_History\\1_Year_Ago",24,16,{"$f":"getRiskValue(\"A:A\",H5,J5,L5,\"Single\")","v":16},{"$f":"IF(ISBLANK(sel_Field_Crop_History\\1_Year_Ago),\"\",sel_Field_Crop_History\\1_Year_Ago)","v":"Cotton"}]
["Crop_Practices\\Plant_Density",1,"5 or more plants/row ft.",10,null,null,null,"Leaf_Spot_Management\\Chlorothalonil_Applications",20,0,{"$f":"getRiskValue(\"A:A\",H6,J6,L6,\"Single\")","v":20},{"$f":"IF(ISBLANK(sel_Leaf_Spot_Management\\Chlorothalonil_Applications),\"\",sel_Leaf_Spot_Management\\Chlorothalonil_Applications)","v":"3 or more"}]
["Crop_Practices\\Plant_Density",2,"3 to 4 plants/row ft.",5,null,null,null,"Field_Crop_History\\2_Years_Ago",16,8,{"$f":"getRiskValue(\"A:A\",H7,J7,L7,\"Single\")","v":8},{"$f":"IF(ISBLANK(sel_Field_Crop_History\\2_Years_Ago),\"\",sel_Field_Crop_History\\2_Years_Ago)","v":"Field Corn"}]
["Crop_Practices\\Plant_Density",3,"1 to 2 plants/row ft.",0,null,null,null,"Crop_Practices\\Plant_Density",10,0,{"$f":"getRiskValue(\"A:A\",H8,J8,L8,\"Single\")","v":10},{"$f":"IF(ISBLANK(sel_Crop_Practices\\Plant_Density),\"\",sel_Crop_Practices\\Plant_Density)","v":"5 or more plants/row ft."}]
["Crop_Practices\\Planting_Date",1,"141 to 365",10,null,null,null,"Crop_Practices\\Planting_Date",10,5,{"$f":"getRiskValue(\"A:A\",H9,J9,L9,\"Date\")","v":5},{"$f":"IF(ISBLANK(sel_Crop_Practices\\Planting_Date),\"\",sel_Crop_Practices\\Planting_Date)","v":"2021-05-01"}]
["Crop_Practices\\Planting_Date",2,"001 to 140",5,null,null,null,"Field\\Irrigation",10,5,{"$f":"getRiskValue(\"A:A\",H10,J10,L10,\"Single\")","v":10},{"$f":"IF(ISBLANK(sel_Field\\Irrigation),\"\",sel_Field\\Irrigation)","v":"Irrigated"}]
["Crop_Practices\\Row_Pattern",1,"Twin (7 to 10 inches)",5,null,null,null,"Field_Soil\\pH",10,0,{"$f":"getRiskValue(\"A:A\",H11,J11,L11,\"pH\")","v":5},{"$f":"IF(ISBLANK(sel_Field_Soil\\pH),\"\",sel_Field_Soil\\pH)","v":6.2}]
["Crop_Practices\\Row_Pattern",2,"Single (32 to 38 inches)",0,null,null,null,"Leaf_Spot_Management\\Spray_Schedule",10,5,{"$f":"getRiskValue(\"A:A\",H12,J12,L12,\"Single\")","v":10},{"$f":"IF(ISBLANK(sel_Leaf_Spot_Management\\Spray_Schedule),\"\",sel_Leaf_Spot_Management\\Spray_Schedule)","v":"Calendar"}]
["Field\\Irrigation",1,"Irrigated",10,null,null,null,"Field_Crop_History\\3_Years_Ago",8,2,{"$f":"getRiskValue(\"A:A\",H13,J13,L13,\"Single\")","v":2},{"$f":"IF(ISBLANK(sel_Field_Crop_History\\3_Years_Ago),\"\",sel_Field_Crop_History\\3_Years_Ago)","v":"Cotton"}]
["Field\\Irrigation",2,"Periodic Irrigation",8,null,null,null,"Crop_Practices\\Row_Pattern",5,0,{"$f":"getRiskValue(\"A:A\",H14,J14,L14,\"Single\")","v":0},{"$f":"IF(ISBLANK(sel_Crop_Practices\\Row_Pattern),\"\",sel_Crop_Practices\\Row_Pattern)","v":"Single (32 to 38 inches)"}]
["Field\\Irrigation",3,"Non-Irrigated",5,null,null,null,"Field_Crop_History\\4_Years_ago",4,2,{"$f":"getRiskValue(\"A:A\",H15,J15,L15,\"Single\")","v":4},{"$f":"IF(ISBLANK(sel_Field_Crop_History\\4_Years_ago),\"\",sel_Field_Crop_History\\4_Years_ago)","v":"Peanut"}]
["Field_Crop_History\\1_Year_Ago",1,"Clary Sage|Melons|Peanut|Soybean|Vegetables",24]
["Field_Crop_History\\1_Year_Ago",2,"Tobacco",20,null,null,null,"Total",{"$f":"SUMIF(I3:I15,\">0\")","v":357},{"$f":"SUMIF(J3:J15,\">0\")","v":98},{"$f":"MAX(SCL_MinRiskIndex,SUM(K3:K15))","v":145}]
["Field_Crop_History\\1_Year_Ago",3,"Cotton|Fallow|Field Corn|Forage Grasses|Other|Small Grains|Sorghum|Sweet Corn|Sweetpotato",16]
["Field_Crop_History\\2_Years_Ago",1,"Clary Sage|Melons|Peanut|Soybean|Vegetables",16,null,null,null,"High Risk Index",245]
["Field_Crop_History\\2_Years_Ago",2,"Tobacco",12,null,null,null,"Moderate Risk Index",215]
["Field_Crop_History\\2_Years_Ago",3,"Cotton|Fallow|Field Corn|Forage Grasses|Other|Small Grains|Sorghum|Sweet Corn|Sweetpotato",8]
["Field_Crop_History\\3_Years_Ago",1,"Clary Sage|Melons|Peanut|Soybean|Vegetables",8]
["Field_Crop_History\\3_Years_Ago",2,"Tobacco",4]
["Field_Crop_History\\3_Years_Ago",3,"Cotton|Fallow|Field Corn|Forage Grasses|Other|Small Grains|Sorghum|Sweet Corn|Sweetpotato",2]
["Field_Crop_History\\4_Years_ago",1,"Clary Sage|Melons|Peanut|Soybean|Vegetables",4]
["Field_Crop_History\\4_Years_ago",2,"Cotton|Fallow|Field Corn|Forage Grasses|Other|Small Grains|Sorghum|Sweet Corn|Sweetpotato|Tobacco",2]
["Field_Soil\\pH",1,"6.6 or higher",10]
["Field_Soil\\pH",2,"5.8 to 6.5",5]
["Field_Soil\\pH",3,"5.7 or lower",0]
["Leaf_Spot_Management\\Chlorothalonil_Applications",1,"3 or more",20]
["Leaf_Spot_Management\\Chlorothalonil_Applications",2,"Less then 3",0]
["Leaf_Spot_Management\\Spray_Schedule",1,"Calendar|Calendar, skipping when dry",10]
["Leaf_Spot_Management\\Spray_Schedule",2,"Advisory throughout season",5]
["Pest_History\\Sclerotinia",1,"Present and requires 2 or more sprays per year",145]
["Pest_History\\Sclerotinia",2,"Present and requires 1 spray per year",120]
["Pest_History\\Sclerotinia",3,"Present and requires 0 sprays per year",95]
["Pest_History\\Sclerotinia",4,"No history",0]

{"sheet":"SSR","index":15,"n_rows":28,"n_cols":12,"rows_kept":28,"cut":false,"hidden":true,"merged":[[0,0,0,3]]}
["Southern Stem Rot"]
["Category","Risk Level","Risk Level Description","Points",null,null,null,"Category","Max","Min","Risk","Selection"]
["Crop_Practices\\Cultivar",1,"Champs",20,null,null,null,"Crop_Practices\\Cultivar",20,5,{"$f":"getRiskValue(\"A:A\",H3,J3,L3,\"Single\")","v":5},{"$f":"IF(ISBLANK(sel_Crop_Practices\\Cultivar),\"\",sel_Crop_Practices\\Cultivar)","v":"Bailey II"}]
["Crop_Practices\\Cultivar",2,"Emery|Sullivan|Wynne",10,null,null,null,"Pest_History\\Southern_Stem_Rot",20,5,{"$f":"getRiskValue(\"A:A\",H4,J4,L4,\"Single\")","v":5},{"$f":"IF(ISBLANK(sel_Pest_History\\Southern_Stem_Rot),\"\",sel_Pest_History\\Southern_Stem_Rot)","v":"No history"}]
["Crop_Practices\\Cultivar",3,"Bailey|Bailey II",5,null,null,null,"Crop_Practices\\Plant_Density",15,5,{"$f":"getRiskValue(\"A:A\",H5,J5,L5,\"Single\")","v":15},{"$f":"IF(ISBLANK(sel_Crop_Practices\\Plant_Density),\"\",sel_Crop_Practices\\Plant_Density)","v":"5 or more plants/row ft."}]
["Crop_Practices\\Plant_Density",1,"5 or more plants/row ft.",15,null,null,null,"Field_Crop_History\\1_Year_Ago",12,1,{"$f":"getRiskValue(\"A:A\",H6,J6,L6,\"Single\")","v":1},{"$f":"IF(ISBLANK(sel_Field_Crop_History\\1_Year_Ago),\"\",sel_Field_Crop_History\\1_Year_Ago)","v":"Cotton"}]
["Crop_Practices\\Plant_Density",2,"3 to 4 plants/row ft.",10,null,null,null,"Crop_Practices\\Row_Pattern",10,5,{"$f":"getRiskValue(\"A:A\",H7,J7,L7,\"Single\")","v":10},{"$f":"IF(ISBLANK(sel_Crop_Practices\\Row_Pattern),\"\",sel_Crop_Practices\\Row_Pattern)","v":"Single (32 to 38 inches)"}]
["Crop_Practices\\Plant_Density",3,"1 to 2 plants/row ft.",5,null,null,null,"Field\\Irrigation",10,5,{"$f":"getRiskValue(\"A:A\",H8,J8,L8,\"Single\")","v":10},{"$f":"IF(ISBLANK(sel_Field\\Irrigation),\"\",sel_Field\\Irrigation)","v":"Irrigated"}]
["Crop_Practices\\Row_Pattern",1,"Single (32 to 38 inches)",10,null,null,null,"Field\\Seedbed",10,5,{"$f":"getRiskValue(\"A:A\",H9,J9,L9,\"Single\")","v":10},{"$f":"IF(ISBLANK(sel_Field\\Seedbed),\"\",sel_Field\\Seedbed)","v":"Conventional"}]
["Crop_Practices\\Row_Pattern",2,"Twin (7 to 10 inches)",5,null,null,null,"Field_Crop_History\\2_Years_Ago",8,1,{"$f":"getRiskValue(\"A:A\",H10,J10,L10,\"Single\")","v":1},{"$f":"IF(ISBLANK(sel_Field_Crop_History\\2_Years_Ago),\"\",sel_Field_Crop_History\\2_Years_Ago)","v":"Field Corn"}]
["Field\\Irrigation",1,"Irrigated",10,null,null,null,"Field_Crop_History\\3_Years_Ago",4,1,{"$f":"getRiskValue(\"A:A\",H11,J11,L11,\"Single\")","v":1},{"$f":"IF(ISBLANK(sel_Field_Crop_History\\3_Years_Ago),\"\",sel_Field_Crop_History\\3_Years_Ago)","v":"Cotton"}]
["Field\\Irrigation",2,"Periodic Irrigation",8,null,null,null,"Field_Crop_History\\4_Years_ago",2,1,{"$f":"getRiskValue(\"A:A\",H12,J12,L12,\"Single\")","v":2},{"$f":"IF(ISBLANK(sel_Field_Crop_History\\4_Years_ago),\"\",sel_Field_Crop_History\\4_Years_ago)","v":"Peanut"}]
["Field\\Irrigation",3,"Non-Irrigated",5,null,null,null,"Treatments\\Pre_Emergence",0,-10,{"$f":"getRiskValue(\"A:A\",H13,J13,L13,\"Multi\")","v":0},{"$f":"IF(ISBLANK(sel_Treatments\\Pre_Emergence),\"\",sel_Treatments\\Pre_Emergence)","v":"Thimet 20G"}]
["Field\\Seedbed",1,"Conventional",10]
["Field\\Seedbed",2,"Fertilized Rye/No till|Fertilized Rye/Strip till|No cover crop/No till|No cover crop/Strip till|Rye/No till|Rye/Strip till|Wheat/No till|Wheat/Strip till",5,null,null,null,"Total",{"$f":"SUMIF(I3:I13,\">0\")","v":111},{"$f":"SUMIF(J3:J13,\">0\")","v":34},{"$f":"MAX(SSR_MinRiskIndex,SUM(K3:K13))","v":60}]
["Field_Crop_History\\1_Year_Ago",1,"Clary Sage|Melons|Peanut|Soybean|Tobacco|Vegetables",12]
["Field_Crop_History\\1_Year_Ago",2,"Cotton|Fallow|Field Corn|Forage Grasses|Other|Small Grains|Sorghum|Sweet Corn|Sweetpotato",1,null,null,null,"High Risk Index",85]
["Field_Crop_History\\2_Years_Ago",1,"Clary Sage|Melons|Peanut|Soybean|Tobacco|Vegetables",8,null,null,null,"Moderate Risk Index",65]
["Field_Crop_History\\2_Years_Ago",2,"Cotton|Fallow|Field Corn|Forage Grasses|Other|Small Grains|Sorghum|Sweet Corn|Sweetpotato",1]
["Field_Crop_History\\3_Years_Ago",1,"Clary Sage|Melons|Peanut|Soybean|Tobacco|Vegetables",4]
["Field_Crop_History\\3_Years_Ago",2,"Cotton|Fallow|Field Corn|Forage Grasses|Other|Small Grains|Sorghum|Sweet Corn|Sweetpotato",1]
["Field_Crop_History\\4_Years_ago",1,"Clary Sage|Melons|Peanut|Soybean|Tobacco|Vegetables",2]
["Field_Crop_History\\4_Years_ago",2,"Cotton|Fallow|Field Corn|Forage Grasses|Other|Small Grains|Sorghum|Sweet Corn|Sweetpotato",1]
["Pest_History\\Southern_Stem_Rot",1,"A problem even with good fungicide program",20]
["Pest_History\\Southern_Stem_Rot",2,"Present but not a problem with a good fungicide program",15]
["Pest_History\\Southern_Stem_Rot",3,"No history",5]
["Treatments\\Pre_Emergence",1,"Acephate|Admire Pro|AgLogic|Imidacloprid (Generic)|None|Phorate 20G|Thimet 20G|Velum Total",0]
["Treatments\\Pre_Emergence",2,"Proline|Propulse",-10]

{"sheet":"NRN","index":16,"n_rows":20,"n_cols":12,"rows_kept":20,"cut":false,"hidden":true,"merged":[[0,0,0,3]]}
["Northern Rootknot"]
["Category","Risk Level","Risk Level Description","Points",null,null,null,"Category","Max","Min","Risk","Selection"]
["Field\\Seedbed",1,"Conventional",15,null,null,null,"Nematode_History\\Northern_Rootknot",40,0,{"$f":"getRiskValue(\"A:A\",H3,J3,L3,\"Single\")","v":0},{"$f":"IF(ISBLANK(sel_Nematode_History\\Northern_Rootknot),\"\",sel_Nematode_History\\Northern_Rootknot)","v":"Very Low (NCDA Index < 20)"}]
["Field\\Seedbed",2,"Fertilized Rye/No till|Fertilized Rye/Strip till|No cover crop/No till|No cover crop/Strip till|Rye/No till|Rye/Strip till|Wheat/No till|Wheat/Strip till",5,null,null,null,"Field\\Seedbed",15,5,15,{"$f":"IF(ISBLANK(sel_Field\\Seedbed),\"\",sel_Field\\Seedbed)","v":"Conventional"}]
["Field_Crop_History\\1_Year_Ago",1,"Clary Sage|Melons|Peanut|Soybean|Tobacco|Vegetables",15,null,null,null,"Field_Crop_History\\1_Year_Ago",15,2,2,{"$f":"IF(ISBLANK(sel_Field_Crop_History\\1_Year_Ago),\"\",sel_Field_Crop_History\\1_Year_Ago)","v":"Cotton"}]
["Field_Crop_History\\1_Year_Ago",2,"Cotton|Fallow|Field Corn|Forage Grasses|Other|Small Grains|Sorghum|Sweet Corn|Sweetpotato",2,null,null,null,"Field_Soil\\Texture",15,5,15,{"$f":"IF(ISBLANK(sel_Field_Soil\\Texture),\"\",sel_Field_Soil\\Texture)","v":"Loamy Sand"}]
["Field_Crop_History\\2_Years_Ago",1,"Clary Sage|Melons|Peanut|Soybean|Tobacco|Vegetables",10,null,null,null,"Field_Crop_History\\2_Years_Ago",10,3,3,{"$f":"IF(ISBLANK(sel_Field_Crop_History\\2_Years_Ago),\"\",sel_Field_Crop_History\\2_Years_Ago)","v":"Field Corn"}]
["Field_Crop_History\\2_Years_Ago",2,"Cotton|Fallow|Field Corn|Forage Grasses|Other|Small Grains|Sorghum|Sweet Corn|Sweetpotato",3,null,null,null,"Treatments\\Fumigants",0,-40,0,{"$f":"IF(ISBLANK(sel_Treatments\\Fumigants),\"\",sel_Treatments\\Fumigants)","v":"None"}]
["Field_Soil\\Texture",1,"Loamy Sand",15,null,null,null,"Treatments\\Pre_Emergence",0,-10,{"$f":"getRiskValue(\"A:A\",H9,J9,L9,\"Multi\")","v":0},{"$f":"IF(ISBLANK(sel_Treatments\\Pre_Emergence),\"\",sel_Treatments\\Pre_Emergence)","v":"Thimet 20G"}]
["Field_Soil\\Texture",2,"Sandy Loam",10]
["Field_Soil\\Texture",3,"Loam",5,null,null,null,"Total",{"$f":"SUMIF(I3:I9,\">0\")","v":95},{"$f":"SUMIF(J3:J9,\">0\")","v":15},{"$f":"MAX(NRN_MinRiskIndex,SUM(K3:K9))","v":35}]
["Nematode_History\\Northern_Rootknot",1,"High (NCDA Index ≥ 60)",40]
["Nematode_History\\Northern_Rootknot",2,"Moderate (40 ≤ NCDA Index < 60)",30,null,null,null,"High Risk Index",65]
["Nematode_History\\Northern_Rootknot",3,"Low (20 ≤ NCDA Index < 40)",20,null,null,null,"Moderate Risk Index",40]
["Nematode_History\\Northern_Rootknot",4,"Very Low (NCDA Index < 20)",0]
["Treatments\\Fumigants",1,"None",0]
["Treatments\\Fumigants",2,"Metam Sodium",-25]
["Treatments\\Fumigants",3,"Telone II",-40]
["Treatments\\Pre_Emergence",1,"Acephate|Admire Pro|Imidacloprid (Generic)|None|Phorate 20G|Proline|Thimet 20G",0]
["Treatments\\Pre_Emergence",2,"AgLogic|Propulse|Velum Total",-10]

{"sheet":"PRN","index":17,"n_rows":20,"n_cols":12,"rows_kept":20,"cut":false,"hidden":true,"merged":[[0,0,0,3]]}
["Peanut Rootknot"]
["Category","Risk Level","Risk Level Description","Points",null,null,null,"Category","Max","Min","Risk","Selection"]
["Field\\Seedbed",1,"Conventional",15,null,null,null,"Nematode_History\\Peanut_Rootknot",40,0,{"$f":"getRiskValue(\"A:A\",H3,J3,L3,\"Single\")","v":0},{"$f":"IF(ISBLANK(sel_Nematode_History\\Peanut_Rootknot),\"\",sel_Nematode_History\\Peanut_Rootknot)","v":"Very Low (NCDA Index < 20)"}]
["Field\\Seedbed",2,"Fertilized Rye/No till|Fertilized Rye/Strip till|No cover crop/No till|No cover crop/Strip till|Rye/No till|Rye/Strip till|Wheat/No till|Wheat/Strip till",5,null,null,null,"Field\\Seedbed",15,5,15,{"$f":"IF(ISBLANK(sel_Field\\Seedbed),\"\",sel_Field\\Seedbed)","v":"Conventional"}]
["Field_Crop_History\\1_Year_Ago",1,"Clary Sage|Field Corn|Melons|Peanut|Sorghum|Soybean|Sweet Corn|Vegetables",15,null,null,null,"Field_Crop_History\\1_Year_Ago",15,2,2,{"$f":"IF(ISBLANK(sel_Field_Crop_History\\1_Year_Ago),\"\",sel_Field_Crop_History\\1_Year_Ago)","v":"Cotton"}]
["Field_Crop_History\\1_Year_Ago",2,"Cotton|Fallow|Forage Grasses|Other|Small Grains|Sweetpotato|Tobacco",2,null,null,null,"Field_Soil\\Texture",15,5,15,{"$f":"IF(ISBLANK(sel_Field_Soil\\Texture),\"\",sel_Field_Soil\\Texture)","v":"Loamy Sand"}]
["Field_Crop_History\\2_Years_Ago",1,"Clary Sage|Field Corn|Melons|Peanut|Sorghum|Soybean|Sweet Corn|Vegetables",10,null,null,null,"Field_Crop_History\\2_Years_Ago",10,3,10,{"$f":"IF(ISBLANK(sel_Field_Crop_History\\2_Years_Ago),\"\",sel_Field_Crop_History\\2_Years_Ago)","v":"Field Corn"}]
["Field_Crop_History\\2_Years_Ago",2,"Cotton|Fallow|Forage Grasses|Other|Small Grains|Sweetpotato|Tobacco",3,null,null,null,"Treatments\\Fumigants",0,-40,0,{"$f":"IF(ISBLANK(sel_Treatments\\Fumigants),\"\",sel_Treatments\\Fumigants)","v":"None"}]
["Field_Soil\\Texture",1,"Loamy Sand",15,null,null,null,"Treatments\\Pre_Emergence",0,-10,{"$f":"getRiskValue(\"A:A\",H9,J9,L9,\"Multi\")","v":0},{"$f":"IF(ISBLANK(sel_Treatments\\Pre_Emergence),\"\",sel_Treatments\\Pre_Emergence)","v":"Thimet 20G"}]
["Field_Soil\\Texture",2,"Sandy Loam",10]
["Field_Soil\\Texture",3,"Loam",5,null,null,null,"Total",{"$f":"SUMIF(I3:I9,\">0\")","v":95},{"$f":"SUMIF(J3:J9,\">0\")","v":15},{"$f":"MAX(PRN_MinRiskIndex,SUM(K3:K9))","v":42}]
["Nematode_History\\Peanut_Rootknot",1,"High (NCDA Index ≥ 60)",40]
["Nematode_History\\Peanut_Rootknot",2,"Moderate (40 ≤ NCDA Index < 60)",30,null,null,null,"High Risk Index",65]
["Nematode_History\\Peanut_Rootknot",3,"Low (20 ≤ NCDA Index < 40)",25,null,null,null,"Moderate Risk Index",40]
["Nematode_History\\Peanut_Rootknot",4,"Very Low (NCDA Index < 20)",0]
["Treatments\\Fumigants",1,"None",0]
["Treatments\\Fumigants",2,"Metam Sodium",-25]
["Treatments\\Fumigants",3,"Telone II",-40]
["Treatments\\Pre_Emergence",1,"Acephate|Admire Pro|Imidacloprid (Generic)|None|Phorate 20G|Proline|Thimet 20G",0]
["Treatments\\Pre_Emergence",2,"AgLogic|Propulse|Velum Total",-10]

{"sheet":"SN","index":18,"n_rows":20,"n_cols":12,"rows_kept":20,"cut":false,"hidden":true,"merged":[[0,0,0,3]]}
["Sting"]
["Category","Risk Level","Risk Level Description","Points",null,null,null,"Category","Max","Min","Risk","Selection"]
["Field\\Seedbed",1,"Conventional",15,null,null,null,"Nematode_History\\Sting",40,0,{"$f":"getRiskValue(\"A:A\",H3,J3,L3,\"Single\")","v":0},{"$f":"IF(ISBLANK(sel_Nematode_History\\Sting),\"\",sel_Nematode_History\\Sting)","v":"Very Low (NCDA Index < 20)"}]
["Field\\Seedbed",2,"Fertilized Rye/No till|Fertilized Rye/Strip till|No cover crop/No till|No cover crop/Strip till|Rye/No till|Rye/Strip till|Wheat/No till|Wheat/Strip till",5,null,null,null,"Field_Soil\\Texture",20,5,20,{"$f":"IF(ISBLANK(sel_Field_Soil\\Texture),\"\",sel_Field_Soil\\Texture)","v":"Loamy Sand"}]
["Field_Crop_History\\1_Year_Ago",1,"Clary Sage|Cotton|Field Corn|Melons|Peanut|Sorghum|Soybean|Sweet Corn|Vegetables",15,null,null,null,"Field\\Seedbed",15,5,15,{"$f":"IF(ISBLANK(sel_Field\\Seedbed),\"\",sel_Field\\Seedbed)","v":"Conventional"}]
["Field_Crop_History\\1_Year_Ago",2,"Fallow|Forage Grasses|Other|Small Grains|Sweetpotato|Tobacco",2,null,null,null,"Field_Crop_History\\1_Year_Ago",15,2,15,{"$f":"IF(ISBLANK(sel_Field_Crop_History\\1_Year_Ago),\"\",sel_Field_Crop_History\\1_Year_Ago)","v":"Cotton"}]
["Field_Crop_History\\2_Years_Ago",1,"Clary Sage|Cotton|Field Corn|Melons|Peanut|Sorghum|Soybean|Sweet Corn|Vegetables",10,null,null,null,"Field_Crop_History\\2_Years_Ago",10,3,10,{"$f":"IF(ISBLANK(sel_Field_Crop_History\\2_Years_Ago),\"\",sel_Field_Crop_History\\2_Years_Ago)","v":"Field Corn"}]
["Field_Crop_History\\2_Years_Ago",2,"Fallow|Forage Grasses|Other|Small Grains|Sweetpotato|Tobacco",3,null,null,null,"Treatments\\Fumigants",0,-40,0,{"$f":"IF(ISBLANK(sel_Treatments\\Fumigants),\"\",sel_Treatments\\Fumigants)","v":"None"}]
["Field_Soil\\Texture",1,"Loamy Sand",20,null,null,null,"Treatments\\Pre_Emergence",0,-10,{"$f":"getRiskValue(\"A:A\",H9,J9,L9,\"Multi\")","v":0},{"$f":"IF(ISBLANK(sel_Treatments\\Pre_Emergence),\"\",sel_Treatments\\Pre_Emergence)","v":"Thimet 20G"}]
["Field_Soil\\Texture",2,"Sandy Loam",10]
["Field_Soil\\Texture",3,"Loam",5,null,null,null,"Total",{"$f":"SUMIF(I3:I9,\">0\")","v":100},{"$f":"SUMIF(J3:J9,\">0\")","v":15},{"$f":"MAX(SN_MinRiskIndex,SUM(K3:K9))","v":60}]
["Nematode_History\\Sting",1,"High (NCDA Index ≥ 60)",40]
["Nematode_History\\Sting",2,"Moderate (40 ≤ NCDA Index < 60)",30,null,null,null,"High Risk Index",65]
["Nematode_History\\Sting",3,"Low (20 ≤ NCDA Index < 40)",20,null,null,null,"Moderate Risk Index",45]
["Nematode_History\\Sting",4,"Very Low (NCDA Index < 20)",0]
["Treatments\\Fumigants",1,"None",0]
["Treatments\\Fumigants",2,"Metam Sodium",-25]
["Treatments\\Fumigants",3,"Telone II",-40]
["Treatments\\Pre_Emergence",1,"Acephate|Admire Pro|Imidacloprid (Generic)|None|Phorate 20G|Proline|Thimet 20G",0]
["Treatments\\Pre_Emergence",2,"AgLogic|Propulse|Velum Total",-10]

{"sheet":"WDS","index":19,"n_rows":32,"n_cols":12,"rows_kept":32,"cut":false,"hidden":true,"merged":[[0,0,0,3]]}
["Weeds"]
["Category","Risk Level","Risk Level Description","Points",null,null,null,"Category","Max","Min","Risk","Selection"]
["Crop_Practices\\Plant_Density",1,"1 to 2 plants/row ft.",30,null,null,null,"Field\\Weeds",150,10,{"$f":"getRiskValue(\"A:A\",H3,J3,L3,\"Single\")","v":70},{"$f":"IF(ISBLANK(sel_Field\\Weeds),\"\",sel_Field\\Weeds)","v":"C. Ragweed and Palmer A."}]
["Crop_Practices\\Plant_Density",2,"3 to 4 plants/row ft.",20,null,null,null,"Field\\Seedbed",90,10,90,{"$f":"IF(ISBLANK(sel_Field\\Seedbed),\"\",sel_Field\\Seedbed)","v":"Conventional"}]
["Crop_Practices\\Plant_Density",3,"5 or more plants/row ft.",5,null,null,null,"Crop_Practices\\Plant_Density",30,5,5,{"$f":"IF(ISBLANK(sel_Crop_Practices\\Plant_Density),\"\",sel_Crop_Practices\\Plant_Density)","v":"5 or more plants/row ft."}]
["Field\\Irrigation",1,"Irrigated|Periodic Irrigation",20,null,null,null,"Field\\Previous_Weed_Control",30,10,10,{"$f":"IF(ISBLANK(sel_Field\\Previous_Weed_Control),\"\",sel_Field\\Previous_Weed_Control)","v":"Good"}]
["Field\\Irrigation",2,"Non-Irrigated",0,null,null,null,"Field\\Irrigation",20,0,20,{"$f":"IF(ISBLANK(sel_Field\\Irrigation),\"\",sel_Field\\Irrigation)","v":"Irrigated"}]
["Field\\Previous_Weed_Control",1,"Poor",30,null,null,null,"Field_Crop_History\\1_Year_Ago",15,0,5,{"$f":"IF(ISBLANK(sel_Field_Crop_History\\1_Year_Ago),\"\",sel_Field_Crop_History\\1_Year_Ago)","v":"Cotton"}]
["Field\\Previous_Weed_Control",2,"Fair",20,null,null,null,"Treatments\\Weed_Mgmt",0,-150,0,{"$f":"IF(ISBLANK(sel_Treatments\\Weed_Mgmt),\"\",sel_Treatments\\Weed_Mgmt)","v":"None"}]
["Field\\Previous_Weed_Control",3,"Good",10]
["Field\\Seedbed",1,"Conventional|No cover crop/Strip till",90,null,null,null,"Total",{"$f":"SUMIF(I3:I9,\">0\")","v":335},{"$f":"SUMIF(J3:J9,\">0\")","v":35},{"$f":"MAX(WDS_MinRiskIndex,SUM(K3:K9))","v":200}]
["Field\\Seedbed",2,"No cover crop/No till|Wheat/Strip till",80]
["Field\\Seedbed",3,"Wheat/No till",60,null,null,null,"High Risk Index",235]
["Field\\Seedbed",4,"Rye/Strip till",50,null,null,null,"Moderate Risk Index",135]
["Field\\Seedbed",5,"Fertilized Rye/Strip till|Rye/No till",30]
["Field\\Seedbed",6,"Fertilized Rye/No till",10]
["Field\\Weeds",1,"C. Ragweed and Palmer A. (ALS and PPO Resistant)",150]
["Field\\Weeds",2,"C. Ragweed and Palmer A. (PPO Resistant)|Palmer A. (ALS  and PPO Resistant)|Palmer A. (PPO Resistant)",100]
["Field\\Weeds",3,"Annual Grass (ACC and ALS Resistant)|C. Ragweed and Palmer A.|C. Ragweed and Palmer A. (ALS Resistant)|Palmer A.|Palmer A. (ALS Resistant)",70]
["Field\\Weeds",4,"Annual Grass (ACC Resistant)|Annual Grass (ALS Resistant)|C. Ragweed (ALS and PPO Resistant)|C. Ragweed (PPO Resistant)|Sedges (ALS Resistant)",50]
["Field\\Weeds",5,"Annual Grass|C. Lambsquarter|C. Ragweed|C. Ragweed (ALS Resistant)|Eclipta|Sedges|Sicklepod",20]
["Field\\Weeds",6,"Others",10]
["Field_Crop_History\\1_Year_Ago",1,"Fallow|Soybean|Sweetpotato|Tobacco",15]
["Field_Crop_History\\1_Year_Ago",2,"Clary Sage|Melons|Other|Peanut|Sorghum|Vegetables",10]
["Field_Crop_History\\1_Year_Ago",3,"Cotton|Forage Grasses|Small Grains|Sweet Corn",5]
["Field_Crop_History\\1_Year_Ago",4,"Field Corn",0]
["Treatments\\Weed_Mgmt",1,"EPOST|None|PPL",0]
["Treatments\\Weed_Mgmt",2,"LPOST|PPI|PRE",-55]
["Treatments\\Weed_Mgmt",3,"MPOST|PPI + PRE|PRE + EPOST",-90]
["Treatments\\Weed_Mgmt",4,"PRE + EPOST + MPOST",-105]
["Treatments\\Weed_Mgmt",5,"PRE + EPOST + MPOST + LPOST",-130]
["Treatments\\Weed_Mgmt",6,"PRE + EPOST + Hand Weed|PRE + EPOST + MPOST + Hand Weed|PRE + EPOST + MPOST + LPOST + Hand Weed",-150]

{"sheet":"CNW","index":20,"n_rows":14,"n_cols":12,"rows_kept":14,"cut":false,"hidden":true,"merged":[[0,0,0,3]]}
["Caterpillars and Worms"]
["Category","Risk Level","Risk Level Description","Points",null,null,null,"Category","Max","Min","Risk","Selection"]
["Crop_Practices\\Cultivar",1,"Sullivan",15,null,null,null,"Pest\\Host_Crops",20,5,{"$f":"getRiskValue(\"A:A\",H3,J3,L3,\"Single\")","v":15},{"$f":"IF(ISBLANK(sel_Pest\\Host_Crops),\"\",sel_Pest\\Host_Crops)","v":"Field Corn"}]
["Crop_Practices\\Cultivar",2,"Bailey|Bailey II|Champs|Emery|Wynne",10,null,null,null,"Crop_Practices\\Cultivar",15,10,{"$f":"getRiskValue(\"A:A\",H4,J4,L4,\"Single\")","v":10},{"$f":"IF(ISBLANK(sel_Crop_Practices\\Cultivar),\"\",sel_Crop_Practices\\Cultivar)","v":"Bailey II"}]
["Crop_Practices\\Planting_Date",1,"136 to 365",15,null,null,null,"Crop_Practices\\Planting_Date",15,5,{"$f":"getRiskValue(\"A:A\",H5,J5,L5,\"Date\")","v":10},{"$f":"IF(ISBLANK(sel_Crop_Practices\\Planting_Date),\"\",sel_Crop_Practices\\Planting_Date)","v":"2021-05-01"}]
["Crop_Practices\\Planting_Date",2,"121 to 135",10,null,null,null,"Treatments\\Post_Insecticide",0,-20,{"$f":"getRiskValue(\"A:A\",H6,J6,L6,\"Multi\")","v":0},{"$f":"IF(ISBLANK(sel_Treatments\\Post_Insecticide),\"\",sel_Treatments\\Post_Insecticide)","v":"Lorsban (Pilot 15 G)"}]
["Crop_Practices\\Planting_Date",3,"001 to 120",5]
["Pest\\Host_Crops",1,"Sweet Corn",20,null,null,null,"Total",{"$f":"SUMIF(I3:I6,\">0\")","v":50},{"$f":"SUMIF(J3:J6,\">0\")","v":20},{"$f":"MAX(CNW_MinRiskIndex,SUM(K3:K6))","v":35}]
["Pest\\Host_Crops",2,"Field Corn",15]
["Pest\\Host_Crops",3,"Clary Sage|Cotton|Melons|Peanut|Small Grains|Sorghum|Soybean|Tobacco|Vegetables",10,null,null,null,"High Risk Index",35]
["Pest\\Host_Crops",4,"Fallow|Forage Grasses|Other|Sweetpotato",5,null,null,null,"Moderate Risk Index",28]
["Treatments\\Post_Insecticide",1,"None|Acephate|Brigade|Comite|Danitol|Lannate|Lorsban (Pilot 15 G)|Portal",0]
["Treatments\\Post_Insecticide",2,"Pyrethroids",-10]
["Treatments\\Post_Insecticide",3,"Non-pyrethroids",-20]